Workbook

Sheet Resumo postos
A6: RESUMO - PLANILHA DE CUSTOS E FORMAÇÃO DE PREÇOS
A7: Categoria | B7: Subitem | C7: Tipo de serviço (A) | D7: Jornada de trabalho | E7: Valor Estimado por empregado (B) | F7: Qtde de empregados por posto(C ) | G7: Valor Estimado por posto (D) = (B x C)* | H7: Qtde de postos (E) | I7: Valor total do serviço mensal (F) = (D x E) | J7: Valor total do serviço p/12 meses: (G) = (Fx12) | K7: Salário
A9: AUXILIAR ADMINISTRATIVO | B9: Auxiliar Administrativo - Nível I | C9: Auxiliar Administrativo (CBO Vinculado 4110-05). | D9: 8hs/dia | E9: ='Aux Adm'!G141 -> 7042.04 | F9: 1 | G9: =E9*F9 -> 7042.04 | H9: 4 | I9: =G9*H9 -> 28168.16 | J9: =I9*12 -> 338017.92 | K9: ='Aux Adm'!G30 -> 2901.06
A10: Total Assistente Administrativo | I10: =SUM(I7:I9) -> 28168.16 | J10: =SUM(J9) -> 338017.92
A12: ASSISTENTE ADMINISTRATIVO | B12: Administrativo - Nível I | C12: Assistente Administrativo (CBO Vinculado 4110-10). | D12: 8hs/dia | E12: ='Ass. Adm. I'!G141 -> 8080.23 | F12: 1 | G12: =E12*F12 -> 8080.23 | H12: 6 | I12: =G12*H12 -> 48481.38 | J12: =I12*12 -> 581776.56 | K12: ='Ass. Adm. I'!G39 -> 3378.33
B13: Administrativo - Nível II | C13: Assistente Administrativo (CBO Vinculado 4110-10). | D13: 8hs/dia | E13: ='Ass. Adm. II'!G141 -> 10174.73 | F13: 1 | G13: =E13*F13 -> 10174.73 | H13: 4 | I13: =G13*H13 -> 40698.92 | J13: =I13*12 -> 488387.04 | K13: ='Ass. Adm. II'!G39 -> 4316.73
B14: Administrativo - Nível III | C14: Assistente Administrativo (CBO Vinculado 4110-10). | D14: 8hs/dia | E14: ='Ass. Adm. III'!G141 -> 12989.75 | F14: 1 | G14: =E14*F14 -> 12989.75 | H14: 3 | I14: =G14*H14 -> 38969.25 | J14: =I14*12 -> 467631 | K14: ='Ass. Adm. III'!G39 -> 5563.94
A15: Total Assistente Administrativo | I15: =SUM(I12:I14) -> 128149.55 | J15: =SUM(J12:J14) -> 1537794.6
A17: GABINETE | B17: Assistente de Gabinete - Nível I | C17: Assistente Administrativo (CBO Vinculado 4110-10). | D17: 8hs/dia | E17: ='Ass. Gab. I'!G141 -> 8080.23 | F17: 1 | G17: =E17*F17 -> 8080.23 | H17: 2 | I17: =G17*H17 -> 16160.46 | J17: =I17*12 -> 193925.52 | K17: ='Ass. Gab. I'!G39 -> 3378.33
A18: Total Assistente de Gabinete | I18: =SUM(I17:I17) -> 16160.46 | J18: =SUM(J17:J17) -> 193925.52
A20: SUPERINTENDÊNCIA | B20: Assistente Superintendência - Nível I | C20: Assistente Administrativo (CBO Vinculado 4110-10). | D20: 8hs/dia | E20: ='Ass. Sup. I'!G141 -> 8080.23 | F20: 1 | G20: 8080.23 | H20: 2 | I20: 16160.46 | J20: 193925.52 | K20: ='Ass. Sup. I'!G39 -> 3378.33
B21: Assistente Superintendência - Nível II | C21: Assistente Administrativo (CBO Vinculado 4110-10). | D21: 8hs/dia | E21: ='Ass. Sup. II'!G141 -> 14733.59 | F21: 1 | G21: 14733.59 | H21: 2 | I21: 29467.18 | J21: 353606.16 | K21: ='Ass. Sup. II'!G39 -> 6336.55
B22: Assistente Superintendência - Nível III | C22: Assistente Administrativo (CBO Vinculado 4110-10). | D22: 8hs/dia | E22: =Analista!G141 -> 17132.67 | F22: 1 | G22: 17132.67 | H22: 2 | I22: 34265.34 | J22: 411184.08 | K22: =Analista!G39 -> 7399.45
A23: Total Assistente Superintendência | I23: =SUM(I20:I22) -> 79892.98 | J23: =SUM(J20:J22) -> 958715.76
A25: ASSISTENTE DE CONDUÇÃO | B25: Assistente de Condução - HAB. B | C25: Assistente de Condução (CBO Vinculado 7823-05). | D25: 8hs/dia | E25: ='Assist. Condução'!G141 -> 8080.23 | F25: 1 | G25: =E25*F25 -> 8080.23 | H25: 2 | I25: =G25*H25 -> 16160.46 | J25: =I25*12 -> 193925.52 | K25: ='Assist. Condução'!G39 -> 3378.33
B26: Assistente de Condução - HAB. D | C26: Assistente de Condução (CBO Vinculado7823-10). | D26: 8hs/dia | E26: ='Ass. Cond. Hab. D'!G141 -> 8080.23 | F26: 1 | G26: =E26*F26 -> 8080.23 | H26: 1 | I26: =G26*H26 -> 8080.23 | J26: =I26*12 -> 96962.76 | K26: ='Ass. Cond. Hab. D'!G39 -> 3378.33
A27: Total Assistente de Condução | I27: =SUM(I25:I26) -> 24240.69 | J27: =SUM(J25:J26) -> 290888.28
A29: DIÁRIAS | B29: Aplicável a qualquer das funções | C29: Despesas com Viagens | D29: 1 | E29: ='Despesas com Viagens - Diárias'!E15 -> 1857.65 | F29: 1 | G29: =E29*F29 -> 1857.65 | H29: 1 | I29: =G29*H29 -> 1857.65 | J29: =I29*12 -> 22291.8
A30: Total Diárias - Assistente de Condução | I30: =SUM(I29:I29) -> 1857.65 | J30: =SUM(J29:J29) -> 22291.8
A32: H. EXTRA - ASSISTENTE DE CONDUÇÃO | B32: Assistente de Condução | C32: Hora extra a 50% | D32: 30h/mês | E32: ='Assist. Condução - Hora Extra'!G141*30 -> 1560 | F32: 1 | G32: =E32*F32 -> 1560 | H32: 1 | I32: =G32*H32 -> 1560 | J32: =I32*12 -> 18720
A33: Total Horas Extras a 50% - Assistente de Condução | I33: =SUM(I32:I32) -> 1560 | J33: =SUM(J32:J32) -> 18720
C36: Valor Total Mensal dos Serviços | I36: =I10+I15+I18+I23+I27+I30+I33 -> 280029.49
C38: Valor Global para 12 meses | J38: =J10+J15+J18+J23+J27+J30+J33 -> 3360353.88
H41: =H9+H12+H13+H14+H17+H20+H21+H22+H25+H26+H29+H32 -> 30 | J41: =I36*12 -> 3360353.88

Sheet Planilha
B2: Processo nº 59530.001978/2024-29
B3: Objeto: CONTRATAÇÃO DE EMPRESA ESPECIALIZADA NA PRESTAÇÃO DE SERVIÇOS DE APOIO ADMINISTRATIVO, DE FORMA CONTÍNUA, A SEREM EXECUTADOS COM REGIME DE DEDICAÇÃO EXCLUSIVA DE MÃO DE OBRA, NAS DEPENDÊNCIAS DA 3ª SUPERINTENDÊNCIA REGIONAL DA CODEVASF - PETROLINA/PE
B6: ITEM | C6: DISCRIMINAÇÃO | D6: UNIDADE | E6: Nº DE MESES | F6: Nº DE POSTOS/MÊS | G6: QUANT. | H6: PREÇO UNITÁRIO | I6: TOTAL
B9: I.A | C9: EQUIPE
B10: 1.0 | C10: AUXILIAR ADMINISTRATIVO
B11: 1.1 | C11: Auxiliar Administrativo - Nível I | D11: mês | E11: 12 | F11: ='Resumo postos'!H9 -> 4 | G11: =E11*F11 -> 48 | H11: ='Resumo postos'!E9 -> 7042.04 | I11: =ROUND(G11*H11,2) -> 338017.92
B12: 2.0 | C12: ASSISTENTE ADMINISTRATIVO
B13: 2.1 | C13: ='Resumo postos'!B12 -> Administrativo - Nível I | D13: mês | E13: 12 | F13: ='Resumo postos'!H12 -> 6 | G13: =E13*F13 -> 72 | H13: ='Resumo postos'!E12 -> 8080.23 | I13: =ROUND(G13*H13,2) -> 581776.56
B14: 2.2 | C14: ='Resumo postos'!B13 -> Administrativo - Nível II | D14: mês | E14: 12 | F14: ='Resumo postos'!H13 -> 4 | G14: =E14*F14 -> 48 | H14: ='Resumo postos'!E13 -> 10174.73 | I14: =ROUND(G14*H14,2) -> 488387.04
B15: 2.3 | C15: ='Resumo postos'!B14 -> Administrativo - Nível III | D15: mês | E15: 12 | F15: ='Resumo postos'!H14 -> 3 | G15: =E15*F15 -> 36 | H15: ='Resumo postos'!E14 -> 12989.75 | I15: =ROUND(G15*H15,2) -> 467631
B16: 3.0 | C16: ASSISTENTE DE GABINETE
B17: 3.1 | C17: ='Resumo postos'!B17 -> Assistente de Gabinete - Nível I | D17: mês | E17: 12 | F17: ='Resumo postos'!H17 -> 2 | G17: =E17*F17 -> 24 | H17: ='Resumo postos'!E17 -> 8080.23 | I17: =ROUND(G17*H17,2) -> 193925.52
B18: 4.0 | C18: ASSISTENTE SUPERINTENDÊNCIA
B19: 4.1 | C19: ='Resumo postos'!B20 -> Assistente Superintendência - Nível I | D19: mês | E19: 12 | F19: ='Resumo postos'!H20 -> 2 | G19: =E19*F19 -> 24 | H19: ='Resumo postos'!E20 -> 8080.23 | I19: =ROUND(G19*H19,2) -> 193925.52
B20: 4.2 | C20: ='Resumo postos'!B21 -> Assistente Superintendência - Nível II | D20: mês | E20: 12 | F20: ='Resumo postos'!H21 -> 2 | G20: =E20*F20 -> 24 | H20: ='Resumo postos'!E21 -> 14733.59 | I20: =ROUND(G20*H20,2) -> 353606.16
B21: 4.3 | C21: ='Resumo postos'!B22 -> Assistente Superintendência - Nível III | D21: mês | E21: 12 | F21: ='Resumo postos'!H22 -> 2 | G21: 24 | H21: ='Resumo postos'!E22 -> 17132.67 | I21: 411184.08
B22: 5.0 | C22: ASSISTENTE DE CONDUÇÃO
B23: 5.1 | C23: ='Resumo postos'!B25 -> Assistente de Condução - HAB. B | D23: mês | E23: 12 | F23: ='Resumo postos'!H25 -> 2 | G23: 24 | H23: ='Resumo postos'!E25 -> 8080.23 | I23: =ROUND(G23*H23,2) -> 193925.52
B24: 5.2 | C24: ='Resumo postos'!B26 -> Assistente de Condução - HAB. D | D24: mês | E24: 12 | F24: ='Resumo postos'!H26 -> 1 | G24: 12 | H24: ='Resumo postos'!E26 -> 8080.23 | I24: =ROUND(G24*H24,2) -> 96962.76
B25: 5.3 | C25: Horas Extras | D25: mês | E25: 12 | F25: ='Resumo postos'!H32 -> 1 | G25: 12 | H25: ='Resumo postos'!E32 -> 1560 | I25: =ROUND(G25*H25,2) -> 18720
B26: 6.0 | C26: DIÁRIAS
B27: 6.1 | C27: Diárias | D27: mês | E27: 12 | F27: ='Resumo postos'!H29 -> 1 | G27: =E27*F27 -> 12 | H27: ='Resumo postos'!E29 -> 1857.65 | I27: =ROUND(G27*H27,2) -> 22291.8
B29: TOTAL GERAL: | I29: =SUM(I11:I27) -> 3360353.88

Sheet Planilha1
B1: ITEM | C1: DISCRIMINAÇÃO | D1: UNIDADE | E1: Nº DE MESES | F1: Nº DE POSTOS/MÊS
B4: 1.0 | C4: AUXILIAR ADMINISTRATIVO
B5: 1.1 | C5: Auxiliar Administrativo - Nível I | D5: mês | E5: 12 | F5: ='Resumo postos'!H9 -> 4
B6: 2.0 | C6: ASSISTENTE ADMINISTRATIVO
B7: 2.1 | C7: ='Resumo postos'!B12 -> Administrativo - Nível I | D7: mês | E7: 12 | F7: ='Resumo postos'!H12 -> 6
B8: 2.2 | C8: ='Resumo postos'!B13 -> Administrativo - Nível II | D8: mês | E8: 12 | F8: ='Resumo postos'!H13 -> 4
B9: 2.3 | C9: ='Resumo postos'!B14 -> Administrativo - Nível III | D9: mês | E9: 12 | F9: ='Resumo postos'!H14 -> 3
B10: 3.0 | C10: ASSISTENTE DE GABINETE
B11: 3.1 | C11: ='Resumo postos'!B17 -> Assistente de Gabinete - Nível I | D11: mês | E11: 12 | F11: ='Resumo postos'!H17 -> 2
B12: 4.0 | C12: ASSISTENTE SUPERINTENDÊNCIA
B13: 4.1 | C13: ='Resumo postos'!B20 -> Assistente Superintendência - Nível I | D13: mês | E13: 12 | F13: ='Resumo postos'!H20 -> 2
B14: 4.2 | C14: ='Resumo postos'!B21 -> Assistente Superintendência - Nível II | D14: mês | E14: 12 | F14: ='Resumo postos'!H21 -> 2
B15: 4.3 | C15: ='Resumo postos'!B22 -> Assistente Superintendência - Nível III | D15: mês | E15: 12 | F15: ='Resumo postos'!H22 -> 2
B16: 5.0 | C16: ASSISTENTE DE CONDUÇÃO
B17: 5.1 | C17: ='Resumo postos'!B25 -> Assistente de Condução - HAB. B | D17: mês | E17: 12 | F17: ='Resumo postos'!H25 -> 2
B18: 5.2 | C18: ='Resumo postos'!B26 -> Assistente de Condução - HAB. D | D18: mês | E18: 12 | F18: ='Resumo postos'!H26 -> 1
B19: 5.3 | C19: Horas Extras - Assistente de Condução | D19: mês | E19: 12 | F19: ='Resumo postos'!H32 -> 1
B20: 6.0 | C20: DIÁRIAS
B21: 6.1 | C21: Diárias | D21: mês | E21: 12 | F21: ='Resumo postos'!H29 -> 1

Sheet Aux Adm
A6: PLANILHA DE CUSTOS E FORMAÇÃO DE PREÇOS
B8: Nº Processo | E8: 59530.001233/2024-60
B9: Licitação nº
A10: DISCRIMINAÇÃO DOS SERVIÇOS (dados referentes à contratação)
A12: A | B12: Ano do Acordo, Convenção ou Dissídio Coletivo | F12: 2024 - PE000123/2024
A13: B | B13: Município/UF | F13: Petrolina/PE
A14: C | B14: Data de Registro no MTE | F14: 20/02/2024
A15: D | B15: Nº de meses de execução contratual | F15: 12 (doze) meses
A17: IDENTIFICAÇÃO DO SERVIÇO
A19: Tipo de Serviço | C19: Unidade de Medida | E19: Quantidade total a contratar (em função da unidade de medida)
A20: Assistente Administrativo - Nível I (A3) | C20: Posto de serviço | E20: 1
A22: 1. MÓDULOS
A24: MÃO DE OBRA
A25: Mão de obra vinculada à execução contratual
A27: Dados para composição dos custos referente à mão de obra
A28: 1 | B28: Tipo de serviço | G28: =A20 -> Assistente Administrativo - Nível I (A3)
A29: 2 | B29: Classificação Brasileira de Ocupações (CBO) | G29: 4110-05 | H29: 2021 | I29: 2022 | J29: 2023 | K29: 2024
A30: 3 | B30: Salário Normativo da Categoria Profissional | G30: 2901.06 | H30: 0.0393 | I30: 0.06 | J30: 0.0593 | K30: 0.0371
A31: 4 | B31: Categoria profissional (vinculada à execução contratual) | G31: Administrativo
A32: 5 | B32: Data-Base da categoria (dia/mês/ano) | G32: 1º/01/2024 | H32: 4000 | I32: 4000 | J32: 4000 | K32: 2000-5000
H34: 2791.36
A35: MÓDULO 1: COMPOSIÇÃO DA REMUNERAÇÃO | H35: =H34*1.0393 -> 2901.06 | I35: =H35*1.06 -> 3075.12 | J35: =I35*1.0593 -> 3257.47 | K35: =J35*1.0371+0.01 -> 3378.33
A37: 1 | B37: Composição da Remuneração | G37: Valor (R$)
A38: A | B38: Salário Base | G38: =G30 -> 2901.06
B39: Total | G39: =G38 -> 2901.06
A41: MÓDULO 2: ENCARGOS E BENEFÍCIOS ANUAIS, MENSAIS E DIÁRIOS
A43: Submódulo 2.1 - 13º (décimo terceiro) Salário, Férias e Adicional de Férias
A45: 2.1 | B45: 13º (décimo terceiro) Salário, Férias e Adicional de Férias | F45: % | G45: Valor (R$)
A46: A | B46: 13º (décimo terceiro) Salário | F46: 0.0833 | G46: =G39*F46 -> 241.66
A47: B | B47: Férias e Adicional de Férias | F47: 0.1111 | G47: =G39*F47 -> 322.31
A48: TOTAL | F48: =SUM(F46:F47) -> 0.1944 | G48: =SUM(G46:G47) -> 563.97
A50: Submódulo 2.2 - Encargos previdenciários (GPS), Fundo de Garantia por tempo de Serviço (FGTS) e outras contribuições:
A52: 2.2 | B52: GPS, FGTS e outras contribuiçoes | F52: % | G52: Valor (R$)
A53: A | B53: INSS | F53: 0.2 | G53: =($G$39+$G$48)*F53 -> 693.01
A54: B | B54: Salário Educação | F54: 0.025 | G54: 86.63
A55: C | B55: Seguro Acidente do Trabalho/SAT/INSS | F55: 0.03 | G55: 103.95
A56: D | B56: SESI/SESC | F56: 0.015 | G56: 51.98
A57: E | B57: SENAI/SENAC | F57: 0.01 | G57: 34.65
A58: F | B58: INCRA | F58: 0.002 | G58: 6.93
A59: G | B59: FGTS | F59: 0.08 | G59: 277.2
A60: H | B60: SEBRAE | F60: 0.006 | G60: 20.79
A61: TOTAL | F61: =SUM(F53:F60) -> 0.368 | G61: =SUM(G53:G60) -> 1275.14
A63: Submódulo 2.3 - Benefícios Mensais e Diários
A65: 2.3 | B65: Benefícios Mensais e Diários | G65: Valor (R$)
A66: A | B66: Transporte | G66: =IF((5*2*22)-(6%*G38)>0,(5*2*22)-(6%*G38),0) -> 45.94 | I66: =6%*G38 -> 174.06 | J66: = 6% do salario base
A67: B | B67: Auxílio alimentação (Cláusula 11ª CCT 2024) | G67: =(11*22) -> 242 | I67: 5*2*22 = | J67: 220
A68: C | B68: Outros (Cobertura Social - Cláusula 15ª CCT 2024) | G68: =74.85 -> 74.85 | I68: 220-202,70 | J68: =J67-I66 -> 45.94
B69: Total de Benefícios mensais e diários | G69: =SUM(G66:G68) -> 362.79
A71: QUADRO RESUMO DO MÓDULO 2 - Encargos e Benefícios anuais, mensais e diários
A73: 2 | B73: Encargos e Benefícios anuais, mensais e diários | G73: Valor (R$)
A74: 2.1 | B74: 13º (décimo terceiro) Salário, Férias e Adicional de Férias | G74: =G48 -> 563.97
A75: 2.2 | B75: GPS, FGTS e outras contribuiçoes | G75: =G61 -> 1275.14
A76: 2.3 | B76: Benefícios Mensais e Diários | G76: =G69 -> 362.79
A77: TOTAL | G77: =SUM(G74:G76) -> 2201.9
A79: MÓDULO 3 - PROVISÃO PARA RESCISÃO
I80: GPS
A81: 3 | B81: Provisão para Rescisão | G81: Valor (R$)
A82: A | B82: Aviso prévio indenizado | G82: =J82 -> 140.46 | H82: =G39+G77-I82 -> 4105.03 | I82: =(G39+G48)*0.288 -> 997.93 | J82: =H82/12*0.4106 -> 140.46
A83: B | B83: Multa do FGTS e contribuição social sobre o Aviso Prévio Indenizado | G83: =I83 -> 56.91 | H83: =G59 -> 277.2 | I83: =(H83*0.4+H83*0.1)*0.4106 -> 56.91 | J83: =H83*0.5*0.4106 -> 56.91
A84: C | B84: Aviso Prévio Trabalhado | G84: 174.61 | H84: =G39+G77 -> 5102.96 | I84: =H84/12*0.4106 -> 174.61
A85: D | B85: Multa do FGTS e contribuição social sobre o Aviso Prévio Trabalhado | G85: 56.91 | H85: =G59 -> 277.2 | I85: =(H85*0.4+H85*0.1)*0.4106 -> 56.91 | J85: =H85*0.5*0.4106 -> 56.91
A86: E | B86: Demissão com Justa Causa | G86: =K86 -> -7.05 | H86: =G46 -> 241.66 | I86: =G47 -> 322.31 | J86: =H86+I86 -> 563.97 | K86: =-J86*0.0125 -> -7.05
A87: TOTAL | G87: =SUM(G82:G86) -> 421.84
A89: MÓDULO 4 - CUSTO DE REPOSIÇÃO DO PROFISSIONAL AUSENTE
A91: Submódulo 4.1 - Ausências Legais
A92: 4.1 | B92: Ausências legais | F92: Dias/Ano | G92: Valor (R$)
A93: A | B93: Férias | F93: 20.9589 | G93: =$I$93*F93/12+0 -> 321.65 | H93: =G39+G77+G87 -> 5524.8 | I93: =H93/30 -> 184.16 | J93: =I93*F105 -> 5427.9 | K93: =J93/12 -> 452.33
A94: B | B94: Ausência justificada | F94: 1 | G94: =$I$93*F94/12 -> 15.35
A95: C | B95: Acidente de trabalho | F95: 0.9659 | G95: 14.82
A96: D | B96: Afastamento por doença | F96: 3.4932 | G96: =$I$93*F96/12-0 -> 53.61
A97: E | B97: Consulta médica filho | F97: 0.2688 | G97: 4.13
A98: F | B98: Óbitos na família | F98: 0.0427 | G98: 0.66
A99: G | B99: Casamento | F99: 0.0355 | G99: 0.54
A100: H | B100: Doação de Sangue | F100: 0.02 | G100: 0.31
A101: I | B101: Testemunho | F101: 0.004 | G101: 0.06
A102: J | B102: Paternidade | F102: 0.1997 | G102: 3.06
A103: K | B103: Maternidade | F103: 2.4753 | G103: 37.99
A104: L | B104: Consulta pré-natal | F104: 0.0098 | G104: 0.15
A105: TOTAL | F105: =SUM(F93:F104) -> 29.4738 | G105: =SUM(G93:G104) -> 452.33
A108: QUADRO RESUMO DO MÓDULO 4 - Custo de Reposição do Profissional Ausente
A110: 4 | B110: Custo de Reposição do Profissional Ausente | G110: Valor (R$)
A111: 4.1 | B111: Ausências legais | G111: =G105 -> 452.33
A112: TOTAL | G112: =G111 -> 452.33
A114: MÓDULO 5 - INSUMOS DIVERSOS
A116: 5 | B116: Insumos Diversos | G116: Valor (R$)
A117: A | B117: Uniformes | G117: 0
B118: Total | G118: =SUM(G117) -> 0
A120: MÓDULO 6 - CUSTOS INDIRETOS, TRIBUTOS E LUCRO
A122: 6 | B122: Custos Indiretos, Tributos e Lucro | F122: % | G122: Valor (R$)
A123: A | B123: Custos Indiretos | F123: 0.025 | G123: =G139*F123 -> 149.43
A124: B | B124: Lucro | F124: 0.05 | G124: =(G139+G123)*F124 -> 306.33
A125: C | B125: Tributos
A126: c.1 | B126: COFINS | F126: 0.03 | G126: =E146 -> 211.27
A127: c.2 | B127: PIS | F127: 0.0065 | G127: 45.77
A128: c.3 | B128: ISSQN | F128: 0.05 | G128: 352.11
B129: Total | F129: =SUM(F123:F128) -> 0.1615 | G129: =SUM(G123:G128) -> 1064.91
A131: 2. QUADRO - RESUMO DO CUSTO POR EMPREGADO
B133: Mão de obra vinculada à execução contratual (valor por empregado) | G133: Valor (R$)
A134: A | B134: Módulo 1 - Composição da Remuneração | G134: =G39 -> 2901.06
A135: B | B135: Módulo 2 - Encargos e Benefícios Anuais, Mensais e Diários | G135: =G77 -> 2201.9
A136: C | B136: Módulo 3 - Provisão para recisão | G136: =G87 -> 421.84
A137: D | B137: Módulo 4 - Custo de Reposição do Profissional Ausente | G137: =G112 -> 452.33
A138: E | B138: Módulo 5 - Insumos diversos | G138: =G118 -> 0
A139: Subtotal ( A + B +C + D + E) | G139: =SUM(G134:G138) -> 5977.13
A140: F | B140: Módulo 6 - Custos indiretos, Tributos e lucro | G140: =G129 -> 1064.91
A141: Valor total por empregado | G141: =G139+G140 -> 7042.04
A143: P0 = (MÓD 1+MÓD 2+MÓD 3+MÓD 4+MÓD 5) + (CI) + (L) | E143: =G39+G77+G87+G112+G118+G123+G124 -> 6432.89
A144: P1 = P0/(1 - (pis+confins+iss)) | E144: =E143/(1-(F126+F127+F128))+0.01 -> 7042.04
A145: T = P1 - P0 | E145: =E144-E143 -> 609.15
A146: COFINS = ((cofins)/(pis+cofins+iss) x T | E146: =((F126)/(F126+F127+F128))*E145 -> 211.27
A147: PIS = ((pis)/(pis+cofins+iss) x T | E147: =((F127)/(F126+F127+F128))*E145 -> 45.77
A148: ISS = (iss/(pis+cofins+iss)) x T | E148: =((F128/(F126+F127+F128))*E145)+0 -> 352.11

Sheet Ass. Adm. I
A6: PLANILHA DE CUSTOS E FORMAÇÃO DE PREÇOS
B8: Nº Processo | E8: 59530.001233/2024-60
B9: Licitação nº
A10: DISCRIMINAÇÃO DOS SERVIÇOS (dados referentes à contratação)
A12: A | B12: Ano do Acordo, Convenção ou Dissídio Coletivo | F12: 2024 - PE000123/2024
A13: B | B13: Município/UF | F13: Petrolina/PE
A14: C | B14: Data de Registro no MTE | F14: 20/02/2024
A15: D | B15: Nº de meses de execução contratual | F15: 12 (doze) meses
A17: IDENTIFICAÇÃO DO SERVIÇO
A19: Tipo de Serviço | C19: Unidade de Medida | E19: Quantidade total a contratar (em função da unidade de medida)
A20: Assistente Administrativo - Nível I (A3) | C20: Posto de serviço | E20: 1
A22: 1. MÓDULOS
A24: MÃO DE OBRA
A25: Mão de obra vinculada à execução contratual
A27: Dados para composição dos custos referente à mão de obra
A28: 1 | B28: Tipo de serviço | G28: =A20 -> Assistente Administrativo - Nível I (A3)
A29: 2 | B29: Classificação Brasileira de Ocupações (CBO) | G29: 4110-10 | H29: 2021 | I29: 2022 | J29: 2023 | K29: 2024
A30: 3 | B30: Salário Normativo da Categoria Profissional | G30: =K35 -> 3378.33 | H30: 0.0393 | I30: 0.06 | J30: 0.0593 | K30: 0.0371
A31: 4 | B31: Categoria profissional (vinculada à execução contratual) | G31: Administrativo
A32: 5 | B32: Data-Base da categoria (dia/mês/ano) | G32: 1º/01/2024 | H32: 4000 | I32: 4000 | J32: 4000 | K32: 2000-5000
H34: 2791.36
A35: MÓDULO 1: COMPOSIÇÃO DA REMUNERAÇÃO | H35: =H34*1.0393 -> 2901.06 | I35: =H35*1.06 -> 3075.12 | J35: =I35*1.0593 -> 3257.47 | K35: =J35*1.0371+0.01 -> 3378.33
A37: 1 | B37: Composição da Remuneração | G37: Valor (R$)
A38: A | B38: Salário Base | G38: =G30 -> 3378.33
B39: Total | G39: =G38 -> 3378.33
A41: MÓDULO 2: ENCARGOS E BENEFÍCIOS ANUAIS, MENSAIS E DIÁRIOS
A43: Submódulo 2.1 - 13º (décimo terceiro) Salário, Férias e Adicional de Férias
A45: 2.1 | B45: 13º (décimo terceiro) Salário, Férias e Adicional de Férias | F45: % | G45: Valor (R$)
A46: A | B46: 13º (décimo terceiro) Salário | F46: 0.0833 | G46: =G39*F46 -> 281.41
A47: B | B47: Férias e Adicional de Férias | F47: 0.1111 | G47: =G39*F47 -> 375.33
A48: TOTAL | F48: =SUM(F46:F47) -> 0.1944 | G48: =SUM(G46:G47) -> 656.74
A50: Submódulo 2.2 - Encargos previdenciários (GPS), Fundo de Garantia por tempo de Serviço (FGTS) e outras contribuições:
A52: 2.2 | B52: GPS, FGTS e outras contribuiçoes | F52: % | G52: Valor (R$)
A53: A | B53: INSS | F53: 0.2 | G53: =($G$39+$G$48)*F53 -> 807.01
A54: B | B54: Salário Educação | F54: 0.025 | G54: =($G$39+$G$48)*F54 -> 100.88
A55: C | B55: Seguro Acidente do Trabalho/SAT/INSS | F55: 0.03 | G55: 121.05
A56: D | B56: SESI/SESC | F56: 0.015 | G56: 60.53
A57: E | B57: SENAI/SENAC | F57: 0.01 | G57: 40.35
A58: F | B58: INCRA | F58: 0.002 | G58: 8.07
A59: G | B59: FGTS | F59: 0.08 | G59: 322.81
A60: H | B60: SEBRAE | F60: 0.006 | G60: 24.21
A61: TOTAL | F61: =SUM(F53:F60) -> 0.368 | G61: =SUM(G53:G60) -> 1484.91
A63: Submódulo 2.3 - Benefícios Mensais e Diários
A65: 2.3 | B65: Benefícios Mensais e Diários | G65: Valor (R$)
A66: A | B66: Transporte | G66: =IF((5*2*22)-(6%*G38)>0,(5*2*22)-(6%*G38),0) -> 17.3 | I66: =6%*G38 -> 202.7 | J66: = 6% do salario base
A67: B | B67: Auxílio alimentação (Cláusula 11ª CCT 2024) | G67: =(11*22) -> 242 | I67: 5*2*22 = | J67: 220
A68: C | B68: Outros (Cobertura Social - Cláusula 15ª CCT 2024) | G68: =74.85 -> 74.85 | I68: 220-202,70 | J68: =J67-I66 -> 17.3
B69: Total de Benefícios mensais e diários | G69: =SUM(G66:G68) -> 334.15
A71: QUADRO RESUMO DO MÓDULO 2 - Encargos e Benefícios anuais, mensais e diários
A73: 2 | B73: Encargos e Benefícios anuais, mensais e diários | G73: Valor (R$)
A74: 2.1 | B74: 13º (décimo terceiro) Salário, Férias e Adicional de Férias | G74: =G48 -> 656.74
A75: 2.2 | B75: GPS, FGTS e outras contribuiçoes | G75: =G61 -> 1484.91
A76: 2.3 | B76: Benefícios Mensais e Diários | G76: =G69 -> 334.15
A77: TOTAL | G77: =SUM(G74:G76) -> 2475.8
A79: MÓDULO 3 - PROVISÃO PARA RESCISÃO
I80: GPS
A81: 3 | B81: Provisão para Rescisão | G81: Valor (R$)
A82: A | B82: Aviso prévio indenizado | G82: =J82 -> 160.55 | H82: =G39+G77-I82 -> 4692.03 | I82: =(G39+G48)*0.288 -> 1162.1 | J82: =H82/12*0.4106 -> 160.55
A83: B | B83: Multa do FGTS e contribuição social sobre o Aviso Prévio Indenizado | G83: =I83 -> 66.27 | H83: =G59 -> 322.81 | I83: =(H83*0.4+H83*0.1)*0.4106 -> 66.27 | J83: =H83*0.5*0.4106 -> 66.27
A84: C | B84: Aviso Prévio Trabalhado | G84: =I84 -> 200.31 | H84: =G39+G77 -> 5854.13 | I84: =H84/12*0.4106 -> 200.31
A85: D | B85: Multa do FGTS e contribuição social sobre o Aviso Prévio Trabalhado | G85: =I85 -> 66.27 | H85: =G59 -> 322.81 | I85: =(H85*0.4+H85*0.1)*0.4106 -> 66.27 | J85: =H85*0.5*0.4106 -> 66.27
A86: E | B86: Demissão com Justa Causa | G86: =K86 -> -8.21 | H86: =G46 -> 281.41 | I86: =G47 -> 375.33 | J86: =H86+I86 -> 656.74 | K86: =-J86*0.0125 -> -8.21
A87: TOTAL | G87: =SUM(G82:G86) -> 485.19
A89: MÓDULO 4 - CUSTO DE REPOSIÇÃO DO PROFISSIONAL AUSENTE
A91: Submódulo 4.1 - Ausências Legais
A92: 4.1 | B92: Ausências legais | F92: Dias/Ano | G92: Valor (R$)
A93: A | B93: Férias | F93: 20.9589 | G93: =$I$93*F93/12+0 -> 369.07 | H93: =G39+G77+G87 -> 6339.32 | I93: =H93/30 -> 211.31 | J93: =I93*F105 -> 6228.11 | K93: =J93/12 -> 519.01
A94: B | B94: Ausência justificada | F94: 1 | G94: =$I$93*F94/12 -> 17.61
A95: C | B95: Acidente de trabalho | F95: 0.9659 | G95: 17.01
A96: D | B96: Afastamento por doença | F96: 3.4932 | G96: =$I$93*F96/12-0 -> 61.51
A97: E | B97: Consulta médica filho | F97: 0.2688 | G97: 4.73
A98: F | B98: Óbitos na família | F98: 0.0427 | G98: 0.75
A99: G | B99: Casamento | F99: 0.0355 | G99: 0.63
A100: H | B100: Doação de Sangue | F100: 0.02 | G100: 0.35
A101: I | B101: Testemunho | F101: 0.004 | G101: 0.07
A102: J | B102: Paternidade | F102: 0.1997 | G102: 3.52
A103: K | B103: Maternidade | F103: 2.4753 | G103: 43.59
A104: L | B104: Consulta pré-natal | F104: 0.0098 | G104: 0.17
A105: TOTAL | F105: =SUM(F93:F104) -> 29.4738 | G105: =SUM(G93:G104) -> 519.01
A108: QUADRO RESUMO DO MÓDULO 4 - Custo de Reposição do Profissional Ausente
A110: 4 | B110: Custo de Reposição do Profissional Ausente | G110: Valor (R$)
A111: 4.1 | B111: Ausências legais | G111: =G105 -> 519.01
A112: TOTAL | G112: =G111 -> 519.01
A114: MÓDULO 5 - INSUMOS DIVERSOS
A116: 5 | B116: Insumos Diversos | G116: Valor (R$)
A117: A | B117: Uniformes | G117: 0
B118: Total | G118: =SUM(G117) -> 0
A120: MÓDULO 6 - CUSTOS INDIRETOS, TRIBUTOS E LUCRO
A122: 6 | B122: Custos Indiretos, Tributos e Lucro | F122: % | G122: Valor (R$)
A123: A | B123: Custos Indiretos | F123: 0.025 | G123: =G139*F123 -> 171.46
A124: B | B124: Lucro | F124: 0.05 | G124: =(G139+G123)*F124 -> 351.49
A125: C | B125: Tributos
A126: c.1 | B126: COFINS | F126: 0.03 | G126: =E146 -> 242.41
A127: c.2 | B127: PIS | F127: 0.0065 | G127: =E147 -> 52.52
A128: c.3 | B128: ISSQN | F128: 0.05 | G128: =E148 -> 404.02
B129: Total | F129: =SUM(F123:F128) -> 0.1615 | G129: =SUM(G123:G128) -> 1221.9
A131: 2. QUADRO - RESUMO DO CUSTO POR EMPREGADO
B133: Mão de obra vinculada à execução contratual (valor por empregado) | G133: Valor (R$)
A134: A | B134: Módulo 1 - Composição da Remuneração | G134: =G39 -> 3378.33
A135: B | B135: Módulo 2 - Encargos e Benefícios Anuais, Mensais e Diários | G135: =G77 -> 2475.8
A136: C | B136: Módulo 3 - Provisão para recisão | G136: =G87 -> 485.19
A137: D | B137: Módulo 4 - Custo de Reposição do Profissional Ausente | G137: =G112 -> 519.01
A138: E | B138: Módulo 5 - Insumos diversos | G138: =G118 -> 0
A139: Subtotal ( A + B +C + D + E) | G139: =SUM(G134:G138) -> 6858.33
A140: F | B140: Módulo 6 - Custos indiretos, Tributos e lucro | G140: =G129 -> 1221.9
A141: Valor total por empregado | G141: =G139+G140 -> 8080.23
A143: P0 = (MÓD 1+MÓD 2+MÓD 3+MÓD 4+MÓD 5) + (CI) + (L) | E143: =G39+G77+G87+G112+G118+G123+G124 -> 7381.28
A144: P1 = P0/(1 - (pis+confins+iss)) | E144: =E143/(1-(F126+F127+F128))+0.01 -> 8080.23
A145: T = P1 - P0 | E145: =E144-E143 -> 698.95
A146: COFINS = ((cofins)/(pis+cofins+iss) x T | E146: =((F126)/(F126+F127+F128))*E145 -> 242.41
A147: PIS = ((pis)/(pis+cofins+iss) x T | E147: =((F127)/(F126+F127+F128))*E145 -> 52.52
A148: ISS = (iss/(pis+cofins+iss)) x T | E148: =((F128/(F126+F127+F128))*E145)+0 -> 404.02

Sheet Ass. Adm. II
A6: PLANILHA DE CUSTOS E FORMAÇÃO DE PREÇOS
B8: ='Ass. Adm. III'!B8 -> Nº Processo | E8: ='Ass. Adm. III'!E8 -> 59530.001233/2024-60
B9: ='Ass. Adm. III'!B9 -> Licitação nº
A10: DISCRIMINAÇÃO DOS SERVIÇOS (dados referentes à contratação)
A12: A | B12: Ano do Acordo, Convenção ou Dissídio Coletivo | F12: 2024 - PE000123/2024
A13: B | B13: Município/UF | F13: Petrolina/PE
A14: C | B14: Data de Registro no MTE | F14: 20/02/2024
A15: D | B15: Nº de meses de execução contratual | F15: 12 (doze) meses
A17: IDENTIFICAÇÃO DO SERVIÇO
A19: Tipo de Serviço | C19: Unidade de Medida | E19: Quantidade total a contratar (em função da unidade de medida)
A20: Assistente Administrativo-Nivel II (A2) | C20: Posto de serviço | E20: 1
A22: 1. MÓDULOS
A24: MÃO DE OBRA
A25: Mão de obra vinculada à execução contratual
A27: Dados para composição dos custos referente à mão de obra
A28: 1 | B28: Tipo de serviço | G28: =A20 -> Assistente Administrativo-Nivel II (A2)
A29: 2 | B29: Classificação Brasileira de Ocupações (CBO) | G29: 4110-10 | H29: 2021 | I29: 2022 | J29: 2023 | K29: 2024
A30: 3 | B30: Salário Normativo da Categoria Profissional | G30: =K37 -> 4316.73 | H30: 0.0393 | I30: 0.06 | J30: 0.0593 | K30: 0.0371
A31: 4 | B31: Categoria profissional (vinculada à execução contratual) | G31: Administrativo
A32: 5 | B32: Data-Base da categoria (dia/mês/ano) | G32: ='Ass. Adm. I'!G32 -> 1º/01/2024 | H32: 4000 | I32: 4000 | J32: 4000 | K32: 2000-5000
H34: 3775.2
A35: MÓDULO 1: COMPOSIÇÃO DA REMUNERAÇÃO | H35: =H34*1.0393 -> 3923.57 | I35: =H35*1.06 -> 4158.98 | J35: =I35*1.0593 -> 4405.61 | K35: =J35*1.0371 -> 4569.06
A37: 1 | B37: Composição da Remuneração | G37: Valor (R$) | K37: 4316.73
A38: A | B38: Salário Base | G38: =G30 -> 4316.73
B39: Total | G39: =G38 -> 4316.73
A41: MÓDULO 2: ENCARGOS E BENEFÍCIOS ANUAIS, MENSAIS E DIÁRIOS
A43: Submódulo 2.1 - 13º (décimo terceiro) Salário, Férias e Adicional de Férias
A45: 2.1 | B45: 13º (décimo terceiro) Salário, Férias e Adicional de Férias | F45: % | G45: Valor (R$)
A46: A | B46: 13º (décimo terceiro) Salário | F46: ='Ass. Adm. III'!F46 -> 0.0833 | G46: =G39*F46 -> 359.58
A47: B | B47: Férias e Adicional de Férias | F47: ='Ass. Adm. III'!F47 -> 0.1111 | G47: =G39*F47 -> 479.59
A48: TOTAL | F48: =SUM(F46:F47) -> 0.1944 | G48: =SUM(G46:G47) -> 839.17
A50: Submódulo 2.2 - Encargos previdenciários (GPS), Fundo de Garantia por tempo de Serviço (FGTS) e outras contribuições:
A52: 2.2 | B52: GPS, FGTS e outras contribuiçoes | F52: % | G52: Valor (R$)
A53: A | B53: INSS | F53: ='Ass. Adm. III'!F53 -> 0.2 | G53: =($G$39+$G$48)*F53 -> 1031.18
A54: B | B54: Salário Educação | F54: ='Ass. Adm. III'!F54 -> 0.025 | G54: =($G$39+$G$48)*F54 -> 128.9
A55: C | B55: Seguro Acidente do Trabalho/SAT/INSS | F55: ='Ass. Adm. III'!F55 -> 0.03 | G55: 154.68
A56: D | B56: SESI/SESC | F56: ='Ass. Adm. III'!F56 -> 0.015 | G56: 77.34
A57: E | B57: SENAI/SENAC | F57: ='Ass. Adm. III'!F57 -> 0.01 | G57: 51.56
A58: F | B58: INCRA | F58: ='Ass. Adm. III'!F58 -> 0.002 | G58: 10.31
A59: G | B59: FGTS | F59: ='Ass. Adm. III'!F59 -> 0.08 | G59: 412.47
A60: H | B60: SEBRAE | F60: ='Ass. Adm. III'!F60 -> 0.006 | G60: 30.94
A61: TOTAL | F61: ='Ass. Adm. III'!F61 -> 0.368 | G61: =SUM(G53:G60) -> 1897.38
A63: Submódulo 2.3 - Benefícios Mensais e Diários
A65: 2.3 | B65: Benefícios Mensais e Diários | G65: Valor (R$)
A66: A | B66: Transporte | G66: =IF((5*2*22)-(6%*G38)>0,(5*2*22)-(6%*G38),0) -> 0 | I66: =6%*G38 -> 259 | J66: = 6% do salario base
A67: B | B67: Auxílio alimentação (Cláusula 11ª CCT 2024) | G67: ='Ass. Adm. I'!G67 -> 242 | I67: 5*2*22 = | J67: 220
A68: C | B68: Outros (Cobertura Social - Cláusula 15ª CCT 2024) | G68: ='Ass. Adm. I'!G68 -> 74.85 | I68: 220-259,00= | J68: =J67-I66 -> -39
B69: Total de Benefícios mensais e diários | G69: =SUM(G66:G68) -> 316.85
A71: QUADRO RESUMO DO MÓDULO 2 - Encargos e Benefícios anuais, mensais e diários
A73: 2 | B73: Encargos e Benefícios anuais, mensais e diários | G73: Valor (R$)
A74: 2.1 | B74: 13º (décimo terceiro) Salário, Férias e Adicional de Férias | G74: =G48 -> 839.17
A75: 2.2 | B75: GPS, FGTS e outras contribuiçoes | G75: =G61 -> 1897.38
A76: 2.3 | B76: Benefícios Mensais e Diários | G76: =G69 -> 316.85
A77: TOTAL | G77: =SUM(G74:G76) -> 3053.4
A79: MÓDULO 3 - PROVISÃO PARA RESCISÃO
I80: GPS
A81: 3 | B81: Provisão para Rescisão | G81: Valor (R$)
A82: A | B82: Aviso prévio indenizado | G82: =J82 -> 201.37 | H82: =G39+G77-I82 -> 5885.23 | I82: =(G39+G48)*0.288 -> 1484.9 | J82: =H82/12*0.4106 -> 201.37
A83: B | B83: Multa do FGTS e contribuição social sobre o Aviso Prévio Indenizado | G83: =I83 -> 84.68 | H83: =G59 -> 412.47 | I83: =(H83*0.4+H83*0.1)*0.4106 -> 84.68 | J83: =H83*0.5*0.4106 -> 84.68
A84: C | B84: Aviso Prévio Trabalhado | G84: 252.18 | H84: =G39+G77 -> 7370.13 | I84: =H84/12*0.4106 -> 252.18
A85: D | B85: Multa do FGTS e contribuição social sobre o Aviso Prévio Trabalhado | G85: 84.68 | H85: =G59 -> 412.47 | I85: =(H85*0.4+H85*0.1)*0.4106 -> 84.68 | J85: =H85*0.5*0.4106 -> 84.68
A86: E | B86: Demissão com Justa Causa | G86: =K86 -> -10.49 | H86: =G46 -> 359.58 | I86: =G47 -> 479.59 | J86: =H86+I86 -> 839.17 | K86: =-J86*0.0125 -> -10.49
A87: TOTAL | G87: =SUM(G82:G86) -> 612.42
A89: MÓDULO 4 - CUSTO DE REPOSIÇÃO DO PROFISSIONAL AUSENTE
A91: Submódulo 4.1 - Ausências Legais
A92: 4.1 | B92: Ausências legais | F92: Dias/Ano | G92: Valor (R$)
A93: A | B93: Férias | F93: ='Ass. Adm. III'!F93 -> 20.9589 | G93: =$I$93*F93/12-0.01 -> 464.74 | H93: =G39+G77+G87 -> 7982.55 | I93: =H93/30 -> 266.09 | J93: =I93*F105 -> 7842.68 | K93: =J93/12 -> 653.56
A94: B | B94: Ausência justificada | F94: ='Ass. Adm. III'!F94 -> 1 | G94: =$I$93*F94/12 -> 22.17
A95: C | B95: Acidente de trabalho | F95: ='Ass. Adm. III'!F95 -> 0.9659 | G95: 21.42
A96: D | B96: Afastamento por doença | F96: ='Ass. Adm. III'!F96 -> 3.4932 | G96: 77.46
A97: E | B97: Consulta médica filho | F97: ='Ass. Adm. III'!F97 -> 0.2688 | G97: 5.96
A98: F | B98: Óbitos na família | F98: ='Ass. Adm. III'!F98 -> 0.0427 | G98: 0.95
A99: G | B99: Casamento | F99: ='Ass. Adm. III'!F99 -> 0.0355 | G99: 0.79
A100: H | B100: Doação de Sangue | F100: ='Ass. Adm. III'!F100 -> 0.02 | G100: 0.44
A101: I | B101: Testemunho | F101: ='Ass. Adm. III'!F101 -> 0.004 | G101: 0.09
A102: J | B102: Paternidade | F102: ='Ass. Adm. III'!F102 -> 0.1997 | G102: 4.43
A103: K | B103: Maternidade | F103: ='Ass. Adm. III'!F103 -> 2.4753 | G103: 54.89
A104: L | B104: Consulta pré-natal | F104: ='Ass. Adm. III'!F104 -> 0.0098 | G104: 0.22
A105: TOTAL | F105: ='Ass. Adm. III'!F105 -> 29.4738 | G105: =SUM(G93:G104) -> 653.56
A108: QUADRO RESUMO DO MÓDULO 4 - Custo de Reposição do Profissional Ausente
A110: 4 | B110: Custo de Reposição do Profissional Ausente | G110: Valor (R$)
A111: 4.1 | B111: Ausências legais | G111: =G105 -> 653.56
A112: TOTAL | G112: =G111 -> 653.56
A114: MÓDULO 5 - INSUMOS DIVERSOS
A116: 5 | B116: Insumos Diversos | G116: Valor (R$)
A117: A | B117: Uniformes
B118: Total | G118: =SUM(G117) -> 0
A120: MÓDULO 6 - CUSTOS INDIRETOS, TRIBUTOS E LUCRO
A122: 6 | B122: Custos Indiretos, Tributos e Lucro | F122: % | G122: Valor (R$)
A123: A | B123: Custos Indiretos | F123: ='Ass. Adm. III'!F123 -> 0.025 | G123: =G139*F123 -> 215.9
A124: B | B124: Lucro | F124: ='Ass. Adm. III'!F124 -> 0.05 | G124: =(G139+G123)*F124 -> 442.6
A125: C | B125: Tributos
A126: c.1 | B126: COFINS | F126: ='Ass. Adm. III'!F126 -> 0.03 | G126: =E146 -> 305.24
A127: c.2 | B127: PIS | F127: ='Ass. Adm. III'!F127 -> 0.0065 | G127: =E147 -> 66.14
A128: c.3 | B128: ISSQN | F128: ='Ass. Adm. III'!F128 -> 0.05 | G128: =E148 -> 508.74
B129: Total | F129: ='Ass. Adm. III'!F129 -> 0.1615 | G129: =SUM(G123:G128) -> 1538.62
A131: 2. QUADRO - RESUMO DO CUSTO POR EMPREGADO
B133: Mão de obra vinculada à execução contratual (valor por empregado) | G133: Valor (R$)
A134: A | B134: Módulo 1 - Composição da Remuneração | G134: =G39 -> 4316.73
A135: B | B135: Módulo 2 - Encargos e Benefícios Anuais, Mensais e Diários | G135: =G77 -> 3053.4
A136: C | B136: Módulo 3 - Provisão para recisão | G136: =G87 -> 612.42
A137: D | B137: Módulo 4 - Custo de Reposição do Profissional Ausente | G137: =G112 -> 653.56
A138: E | B138: Módulo 5 - Insumos diversos | G138: =G118 -> 0
A139: Subtotal ( A + B +C + D + E) | G139: =SUM(G134:G138) -> 8636.11
A140: F | B140: Módulo 6 - Custos indiretos, Tributos e lucro | G140: =G129 -> 1538.62
A141: Valor total por empregado | G141: =G139+G140 -> 10174.73
A143: P0 = (MÓD 1+MÓD 2+MÓD 3+MÓD 4+MÓD 5) + (CI) + (L) | E143: =G39+G77+G87+G112+G118+G123+G124 -> 9294.61
A144: P1 = P0/(1 - (pis+confins+iss)) | E144: =E143/(1-(F126+F127+F128))+0.01 -> 10174.73
A145: T = P1 - P0 | E145: =E144-E143 -> 880.12
A146: COFINS = ((cofins)/(pis+cofins+iss) x T | E146: =((F126)/(F126+F127+F128))*E145+0 -> 305.24
A147: PIS = ((pis)/(pis+cofins+iss) x T | E147: =((F127)/(F126+F127+F128))*E145 -> 66.14
A148: ISS = (iss/(pis+cofins+iss)) x T | E148: =((F128/(F126+F127+F128))*E145) -> 508.74

Sheet Ass. Adm. III
A6: PLANILHA DE CUSTOS E FORMAÇÃO DE PREÇOS
B8: Nº Processo | E8: ='Ass. Adm. I'!E8 -> 59530.001233/2024-60
B9: Licitação nº
A10: DISCRIMINAÇÃO DOS SERVIÇOS (dados referentes à contratação)
A12: A | B12: Ano do Acordo, Convenção ou Dissídio Coletivo | F12: 2024 - PE000123/2024
A13: B | B13: Município/UF | F13: Petrolina/PE
A14: C | B14: Data de Registro no MTE | F14: 20/02/2024
A15: D | B15: Nº de meses de execução contratual | F15: 12 (doze) meses
A17: IDENTIFICAÇÃO DO SERVIÇO
A19: Tipo de Serviço | C19: Unidade de Medida | E19: Quantidade total a contratar (em função da unidade de medida)
A20: Assistente Administrativo-Nivel III (A1) | C20: Posto de serviço | E20: 1
A22: 1. MÓDULOS
A24: MÃO DE OBRA
A25: Mão de obra vinculada à execução contratual
A27: Dados para composição dos custos referente à mão de obra
A28: 1 | B28: Tipo de serviço | G28: =A20 -> Assistente Administrativo-Nivel III (A1)
A29: 2 | B29: Classificação Brasileira de Ocupações (CBO) | G29: 4110-10 | H29: 2021 | I29: 2022 | J29: 2023 | K29: 2024
A30: 3 | B30: Salário Normativo da Categoria Profissional | G30: =K37 -> 5563.94 | H30: 0.0393 | I30: 0.06 | J30: 0.0593 | K30: 0.0371
A31: 4 | B31: Categoria profissional (vinculada à execução contratual) | G31: Administrativo
A32: 5 | B32: Data-Base da categoria (dia/mês/ano) | G32: ='Ass. Adm. I'!G32 -> 1º/01/2024 | H32: 4000 | I32: 4000 | J32: 4000 | K32: 2000-5000
H34: 5158.56
A35: MÓDULO 1: COMPOSIÇÃO DA REMUNERAÇÃO | H35: =H34*1.0393 -> 5361.29 | I35: =H35*1.06 -> 5682.97 | J35: =I35*1.0593 -> 6019.97 | K35: =J35*1.0371 -> 6243.31
A37: 1 | B37: Composição da Remuneração | G37: Valor (R$) | K37: 5563.94
A38: A | B38: Salário Base | G38: =G30 -> 5563.94
B39: Total | G39: =G38 -> 5563.94
A41: MÓDULO 2: ENCARGOS E BENEFÍCIOS ANUAIS, MENSAIS E DIÁRIOS
A43: Submódulo 2.1 - 13º (décimo terceiro) Salário, Férias e Adicional de Férias
A45: 2.1 | B45: 13º (décimo terceiro) Salário, Férias e Adicional de Férias | F45: % | G45: Valor (R$)
A46: A | B46: 13º (décimo terceiro) Salário | F46: ='Ass. Adm. I'!F46 -> 0.0833 | G46: =G39*F46 -> 463.48
A47: B | B47: Férias e Adicional de Férias | F47: ='Ass. Adm. I'!F47 -> 0.1111 | G47: =G39*F47 -> 618.15
A48: TOTAL | F48: ='Ass. Adm. I'!F48 -> 0.1944 | G48: =SUM(G46:G47) -> 1081.63
A50: Submódulo 2.2 - Encargos previdenciários (GPS), Fundo de Garantia por tempo de Serviço (FGTS) e outras contribuições:
A52: 2.2 | B52: GPS, FGTS e outras contribuiçoes | F52: % | G52: Valor (R$)
A53: A | B53: INSS | F53: ='Ass. Adm. I'!F53 -> 0.2 | G53: =($G$39+$G$48)*F53 -> 1329.11
A54: B | B54: Salário Educação | F54: ='Ass. Adm. I'!F54 -> 0.025 | G54: =($G$39+$G$48)*F54 -> 166.14
A55: C | B55: Seguro Acidente do Trabalho/SAT/INSS | F55: ='Ass. Adm. I'!F55 -> 0.03 | G55: 199.37
A56: D | B56: SESI/SESC | F56: ='Ass. Adm. I'!F56 -> 0.015 | G56: 99.68
A57: E | B57: SENAI/SENAC | F57: ='Ass. Adm. I'!F57 -> 0.01 | G57: 66.46
A58: F | B58: INCRA | F58: ='Ass. Adm. I'!F58 -> 0.002 | G58: 13.29
A59: G | B59: FGTS | F59: ='Ass. Adm. I'!F59 -> 0.08 | G59: 531.65
A60: H | B60: SEBRAE | F60: ='Ass. Adm. I'!F60 -> 0.006 | G60: 39.87
A61: TOTAL | F61: ='Ass. Adm. I'!F61 -> 0.368 | G61: =SUM(G53:G60) -> 2445.57
A63: Submódulo 2.3 - Benefícios Mensais e Diários
A65: 2.3 | B65: Benefícios Mensais e Diários | G65: Valor (R$)
A66: A | B66: Transporte | G66: =IF((5*2*22)-(6%*G38)>0,(5*2*22)-(6%*G38),0) -> 0 | I66: =6%*G38 -> 333.84 | J66: = 6% do salario base
A67: B | B67: Auxílio alimentação (Cláusula 11ª CCT 2024) | G67: ='Ass. Adm. I'!G67 -> 242 | I67: 5*2*22 = | J67: 220
A68: C | B68: Outros (Cobertura Social - Cláusula 15ª CCT 2024) | G68: ='Ass. Adm. I'!G68 -> 74.85 | I68: 220-333,84 = | J68: =J67-I66 -> -113.84
B69: Total de Benefícios mensais e diários | G69: =SUM(G66:G68) -> 316.85
A71: QUADRO RESUMO DO MÓDULO 2 - Encargos e Benefícios anuais, mensais e diários
A73: 2 | B73: Encargos e Benefícios anuais, mensais e diários | G73: Valor (R$)
A74: 2.1 | B74: 13º (décimo terceiro) Salário, Férias e Adicional de Férias | G74: =G48 -> 1081.63
A75: 2.2 | B75: GPS, FGTS e outras contribuiçoes | G75: =G61 -> 2445.57
A76: 2.3 | B76: Benefícios Mensais e Diários | G76: =G69 -> 316.85
A77: TOTAL | G77: =SUM(G74:G76) -> 3844.05
A79: MÓDULO 3 - PROVISÃO PARA RESCISÃO
I80: GPS
A81: 3 | B81: Provisão para Rescisão | G81: Valor (R$)
A82: A | B82: Aviso prévio indenizado | G82: =J82 -> 256.42 | H82: =G39+G77-I82 -> 7494.07 | I82: =(G39+G48)*0.288 -> 1913.92 | J82: =H82/12*0.4106 -> 256.42
A83: B | B83: Multa do FGTS e contribuição social sobre o Aviso Prévio Indenizado | G83: =I83 -> 109.15 | H83: =G59 -> 531.65 | I83: =(H83*0.4+H83*0.1)*0.4106 -> 109.15 | J83: =H83*0.5*0.4106 -> 109.15
A84: C | B84: Aviso Prévio Trabalhado | G84: 321.91 | H84: =G39+G77 -> 9407.99 | I84: =H84/12*0.4106 -> 321.91
A85: D | B85: Multa do FGTS e contribuição social sobre o Aviso Prévio Trabalhado | G85: 109.15 | H85: =G59 -> 531.65 | I85: =(H85*0.4+H85*0.1)*0.4106 -> 109.15 | J85: =H85*0.5*0.4106 -> 109.15
A86: E | B86: Demissão com Justa Causa | G86: =K86 -> -13.52 | H86: =G46 -> 463.48 | I86: =G47 -> 618.15 | J86: =H86+I86 -> 1081.63 | K86: =-J86*0.0125 -> -13.52
A87: TOTAL | G87: =SUM(G82:G86) -> 783.11
A89: MÓDULO 4 - CUSTO DE REPOSIÇÃO DO PROFISSIONAL AUSENTE
A91: Submódulo 4.1 - Ausências Legais
A92: 4.1 | B92: Ausências legais | F92: Dias/Ano | G92: Valor (R$)
A93: A | B93: Férias | F93: ='Ass. Adm. I'!F93 -> 20.9589 | G93: =$I$93*F93/12-0 -> 593.31 | H93: =G39+G77+G87 -> 10191.1 | I93: =H93/30 -> 339.7 | J93: =I93*F105 -> 10012.25 | K93: =J93/12 -> 834.35
A94: B | B94: Ausência justificada | F94: ='Ass. Adm. I'!F94 -> 1 | G94: =$I$93*F94/12 -> 28.31
A95: C | B95: Acidente de trabalho | F95: ='Ass. Adm. I'!F95 -> 0.9659 | G95: 27.34
A96: D | B96: Afastamento por doença | F96: ='Ass. Adm. I'!F96 -> 3.4932 | G96: 98.89
A97: E | B97: Consulta médica filho | F97: ='Ass. Adm. I'!F97 -> 0.2688 | G97: 7.61
A98: F | B98: Óbitos na família | F98: ='Ass. Adm. I'!F98 -> 0.0427 | G98: 1.21
A99: G | B99: Casamento | F99: ='Ass. Adm. I'!F99 -> 0.0355 | G99: 1
A100: H | B100: Doação de Sangue | F100: ='Ass. Adm. I'!F100 -> 0.02 | G100: 0.57
A101: I | B101: Testemunho | F101: ='Ass. Adm. I'!F101 -> 0.004 | G101: 0.11
A102: J | B102: Paternidade | F102: ='Ass. Adm. I'!F102 -> 0.1997 | G102: 5.65
A103: K | B103: Maternidade | F103: ='Ass. Adm. I'!F103 -> 2.4753 | G103: 70.07
A104: L | B104: Consulta pré-natal | F104: ='Ass. Adm. I'!F104 -> 0.0098 | G104: 0.28
A105: TOTAL | F105: ='Ass. Adm. I'!F105 -> 29.4738 | G105: =SUM(G93:G104) -> 834.35
A108: QUADRO RESUMO DO MÓDULO 4 - Custo de Reposição do Profissional Ausente
A110: 4 | B110: Custo de Reposição do Profissional Ausente | G110: Valor (R$)
A111: 4.1 | B111: Ausências legais | G111: =G105 -> 834.35
A112: TOTAL | G112: =G111 -> 834.35
A114: MÓDULO 5 - INSUMOS DIVERSOS
A116: 5 | B116: Insumos Diversos | G116: Valor (R$)
A117: A | B117: Uniformes | G117: 0
B118: Total | G118: =SUM(G117) -> 0
A120: MÓDULO 6 - CUSTOS INDIRETOS, TRIBUTOS E LUCRO
A122: 6 | B122: Custos Indiretos, Tributos e Lucro | F122: % | G122: Valor (R$)
A123: A | B123: Custos Indiretos | F123: ='Ass. Adm. I'!F123 -> 0.025 | G123: =G139*F123 -> 275.64
A124: B | B124: Lucro | F124: ='Ass. Adm. I'!F124 -> 0.05 | G124: =(G139+G123)*F124 -> 565.05
A125: C | B125: Tributos
A126: c.1 | B126: COFINS | F126: ='Ass. Adm. I'!F126 -> 0.03 | G126: =E146 -> 389.69
A127: c.2 | B127: PIS | F127: ='Ass. Adm. I'!F127 -> 0.0065 | G127: =E147 -> 84.43
A128: c.3 | B128: ISSQN | F128: ='Ass. Adm. I'!F128 -> 0.05 | G128: =E148 -> 649.49
B129: Total | F129: ='Ass. Adm. I'!F129 -> 0.1615 | G129: =SUM(G123:G128) -> 1964.3
A131: 2. QUADRO - RESUMO DO CUSTO POR EMPREGADO
B133: Mão de obra vinculada à execução contratual (valor por empregado) | G133: Valor (R$)
A134: A | B134: Módulo 1 - Composição da Remuneração | G134: =G39 -> 5563.94
A135: B | B135: Módulo 2 - Encargos e Benefícios Anuais, Mensais e Diários | G135: =G77 -> 3844.05
A136: C | B136: Módulo 3 - Provisão para recisão | G136: =G87 -> 783.11
A137: D | B137: Módulo 4 - Custo de Reposição do Profissional Ausente | G137: =G112 -> 834.35
A138: E | B138: Módulo 5 - Insumos diversos | G138: =G118 -> 0
A139: Subtotal ( A + B +C + D + E) | G139: =SUM(G134:G138) -> 11025.45
A140: F | B140: Módulo 6 - Custos indiretos, Tributos e lucro | G140: =G129 -> 1964.3
A141: Valor total por empregado | G141: =G139+G140 -> 12989.75
A143: P0 = (MÓD 1+MÓD 2+MÓD 3+MÓD 4+MÓD 5) + (CI) + (L) | E143: =G39+G77+G87+G112+G118+G123+G124 -> 11866.14
A144: P1 = P0/(1 - (pis+confins+iss)) | E144: =E143/(1-(F126+F127+F128)) -> 12989.75
A145: T = P1 - P0 | E145: =E144-E143 -> 1123.61
A146: COFINS = ((cofins)/(pis+cofins+iss) x T | E146: =((F126)/(F126+F127+F128))*E145 -> 389.69
A147: PIS = ((pis)/(pis+cofins+iss) x T | E147: =((F127)/(F126+F127+F128))*E145 -> 84.43
A148: ISS = (iss/(pis+cofins+iss)) x T | E148: =((F128/(F126+F127+F128))*E145) -> 649.49

Sheet Ass. Gab. I
A6: PLANILHA DE CUSTOS E FORMAÇÃO DE PREÇOS
B8: ='Ass. Adm. III'!B8 -> Nº Processo | E8: ='Ass. Adm. III'!E8 -> 59530.001233/2024-60
B9: ='Ass. Adm. III'!B9 -> Licitação nº
A10: DISCRIMINAÇÃO DOS SERVIÇOS (dados referentes à contratação)
A12: A | B12: Ano do Acordo, Convenção ou Dissídio Coletivo | F12: 2024 - PE000123/2024
A13: B | B13: Município/UF | F13: Petrolina/PE
A14: C | B14: Data de Registro no MTE | F14: 20/02/2024
A15: D | B15: Nº de meses de execução contratual | F15: 12 (doze) meses
A17: IDENTIFICAÇÃO DO SERVIÇO
A19: Tipo de Serviço | C19: Unidade de Medida | E19: Quantidade total a contratar (em função da unidade de medida)
A20: Assistente de Gabinete I - Nível I (A3) | C20: Posto de serviço | E20: 1
A22: 1. MÓDULOS
A24: MÃO DE OBRA
A25: Mão de obra vinculada à execução contratual
A27: Dados para composição dos custos referente à mão de obra
A28: 1 | B28: Tipo de serviço | G28: =A20 -> Assistente de Gabinete I - Nível I (A3)
A29: 2 | B29: Classificação Brasileira de Ocupações (CBO) | G29: 4110-10 | H29: 2021 | I29: 2022 | J29: 2023 | K29: 2024
A30: 3 | B30: Salário Normativo da Categoria Profissional | G30: =K35 -> 3378.33 | H30: 0.0393 | I30: 0.06 | J30: 0.0593 | K30: 0.0371
A31: 4 | B31: Categoria profissional (vinculada à execução contratual) | G31: Administrativo
A32: 5 | B32: Data-Base da categoria (dia/mês/ano) | G32: ='Ass. Adm. I'!G32 -> 1º/01/2024 | H32: 4000 | I32: 4000 | J32: 4000 | K32: 2000-5000
H34: 2791.36
A35: MÓDULO 1: COMPOSIÇÃO DA REMUNERAÇÃO | H35: =H34*1.0393 -> 2901.06 | I35: =H35*1.06 -> 3075.12 | J35: =I35*1.0593 -> 3257.47 | K35: =J35*1.0371+0.01 -> 3378.33
A37: 1 | B37: Composição da Remuneração | G37: Valor (R$)
A38: A | B38: Salário Base | G38: =G30 -> 3378.33
B39: Total | G39: =G38 -> 3378.33
A41: MÓDULO 2: ENCARGOS E BENEFÍCIOS ANUAIS, MENSAIS E DIÁRIOS
A43: Submódulo 2.1 - 13º (décimo terceiro) Salário, Férias e Adicional de Férias
A45: 2.1 | B45: 13º (décimo terceiro) Salário, Férias e Adicional de Férias | F45: % | G45: Valor (R$)
A46: A | B46: 13º (décimo terceiro) Salário | F46: ='Ass. Adm. II'!F46 -> 0.0833 | G46: =G39*F46 -> 281.41
A47: B | B47: Férias e Adicional de Férias | F47: ='Ass. Adm. II'!F47 -> 0.1111 | G47: =G39*F47 -> 375.33
A48: TOTAL | F48: ='Ass. Adm. II'!F48 -> 0.1944 | G48: =SUM(G46:G47) -> 656.74
A50: Submódulo 2.2 - Encargos previdenciários (GPS), Fundo de Garantia por tempo de Serviço (FGTS) e outras contribuições:
A52: 2.2 | B52: GPS, FGTS e outras contribuiçoes | F52: % | G52: Valor (R$)
A53: A | B53: INSS | F53: ='Ass. Adm. II'!F53 -> 0.2 | G53: =($G$39+$G$48)*F53 -> 807.01
A54: B | B54: Salário Educação | F54: ='Ass. Adm. II'!F54 -> 0.025 | G54: 100.88
A55: C | B55: Seguro Acidente do Trabalho/SAT/INSS | F55: ='Ass. Adm. II'!F55 -> 0.03 | G55: 121.05
A56: D | B56: SESI/SESC | F56: ='Ass. Adm. II'!F56 -> 0.015 | G56: 60.53
A57: E | B57: SENAI/SENAC | F57: ='Ass. Adm. II'!F57 -> 0.01 | G57: 40.35
A58: F | B58: INCRA | F58: ='Ass. Adm. II'!F58 -> 0.002 | G58: 8.07
A59: G | B59: FGTS | F59: ='Ass. Adm. II'!F59 -> 0.08 | G59: 322.81
A60: H | B60: SEBRAE | F60: ='Ass. Adm. II'!F60 -> 0.006 | G60: 24.21
A61: TOTAL | F61: =SUM(F53:F60) -> 0.368 | G61: =SUM(G53:G60) -> 1484.91
A63: Submódulo 2.3 - Benefícios Mensais e Diários
A65: 2.3 | B65: Benefícios Mensais e Diários | G65: Valor (R$)
A66: A | B66: Transporte | G66: =IF((5*2*22)-(6%*G38)>0,(5*2*22)-(6%*G38),0) -> 17.3 | I66: =6%*G38 -> 202.7 | J66: = 6% do salario base
A67: B | B67: Auxílio alimentação (Cláusula 11ª CCT 2024) | G67: ='Ass. Adm. I'!G67 -> 242 | I67: 5*2*22 = | J67: 220
A68: C | B68: Outros (Cobertura Social - Cláusula 15ª CCT 2024) | G68: ='Ass. Adm. I'!G68 -> 74.85 | I68: 220-202,70 | J68: =J67-I66 -> 17.3
B69: Total de Benefícios mensais e diários | G69: =SUM(G66:G68) -> 334.15
A71: QUADRO RESUMO DO MÓDULO 2 - Encargos e Benefícios anuais, mensais e diários
A73: 2 | B73: Encargos e Benefícios anuais, mensais e diários | G73: Valor (R$)
A74: 2.1 | B74: 13º (décimo terceiro) Salário, Férias e Adicional de Férias | G74: =G48 -> 656.74
A75: 2.2 | B75: GPS, FGTS e outras contribuiçoes | G75: =G61 -> 1484.91
A76: 2.3 | B76: Benefícios Mensais e Diários | G76: =G69 -> 334.15
A77: TOTAL | G77: =SUM(G74:G76) -> 2475.8
A79: MÓDULO 3 - PROVISÃO PARA RESCISÃO
I80: GPS
A81: 3 | B81: Provisão para Rescisão | G81: Valor (R$)
A82: A | B82: Aviso prévio indenizado | G82: =J82 -> 160.55 | H82: =G39+G77-I82 -> 4692.03 | I82: =(G39+G48)*0.288 -> 1162.1 | J82: =H82/12*0.4106 -> 160.55
A83: B | B83: Multa do FGTS e contribuição social sobre o Aviso Prévio Indenizado | G83: =I83 -> 66.27 | H83: =G59 -> 322.81 | I83: =(H83*0.4+H83*0.1)*0.4106 -> 66.27 | J83: =H83*0.5*0.4106 -> 66.27
A84: C | B84: Aviso Prévio Trabalhado | G84: 200.31 | H84: =G39+G77 -> 5854.13 | I84: =H84/12*0.4106 -> 200.31
A85: D | B85: Multa do FGTS e contribuição social sobre o Aviso Prévio Trabalhado | G85: 66.27 | H85: =G59 -> 322.81 | I85: =(H85*0.4+H85*0.1)*0.4106 -> 66.27 | J85: =H85*0.5*0.4106 -> 66.27
A86: E | B86: Demissão com Justa Causa | G86: =K86 -> -8.21 | H86: =G46 -> 281.41 | I86: =G47 -> 375.33 | J86: =H86+I86 -> 656.74 | K86: =-J86*0.0125 -> -8.21
A87: TOTAL | G87: =SUM(G82:G86) -> 485.19
A89: MÓDULO 4 - CUSTO DE REPOSIÇÃO DO PROFISSIONAL AUSENTE
A91: Submódulo 4.1 - Ausências Legais
A92: 4.1 | B92: Ausências legais | F92: Dias/Ano | G92: Valor (R$)
A93: A | B93: Férias | F93: ='Ass. Adm. II'!F93 -> 20.9589 | G93: =$I$93*F93/12+0 -> 369.07 | H93: =G39+G77+G87 -> 6339.32 | I93: =H93/30 -> 211.31 | J93: =I93*F105 -> 6228.11 | K93: =J93/12 -> 519.01
A94: B | B94: Ausência justificada | F94: ='Ass. Adm. II'!F94 -> 1 | G94: =$I$93*F94/12 -> 17.61
A95: C | B95: Acidente de trabalho | F95: ='Ass. Adm. II'!F95 -> 0.9659 | G95: 17.01
A96: D | B96: Afastamento por doença | F96: ='Ass. Adm. II'!F96 -> 3.4932 | G96: 61.51
A97: E | B97: Consulta médica filho | F97: ='Ass. Adm. II'!F97 -> 0.2688 | G97: 4.73
A98: F | B98: Óbitos na família | F98: ='Ass. Adm. II'!F98 -> 0.0427 | G98: 0.75
A99: G | B99: Casamento | F99: ='Ass. Adm. II'!F99 -> 0.0355 | G99: 0.63
A100: H | B100: Doação de Sangue | F100: ='Ass. Adm. II'!F100 -> 0.02 | G100: 0.35
A101: I | B101: Testemunho | F101: ='Ass. Adm. II'!F101 -> 0.004 | G101: 0.07
A102: J | B102: Paternidade | F102: ='Ass. Adm. II'!F102 -> 0.1997 | G102: 3.52
A103: K | B103: Maternidade | F103: ='Ass. Adm. II'!F103 -> 2.4753 | G103: 43.59
A104: L | B104: Consulta pré-natal | F104: ='Ass. Adm. II'!F104 -> 0.0098 | G104: 0.17
A105: TOTAL | F105: ='Ass. Adm. II'!F105 -> 29.4738 | G105: =SUM(G93:G104) -> 519.01
A108: QUADRO RESUMO DO MÓDULO 4 - Custo de Reposição do Profissional Ausente
A110: 4 | B110: Custo de Reposição do Profissional Ausente | G110: Valor (R$)
A111: 4.1 | B111: Ausências legais | G111: =G105 -> 519.01
A112: TOTAL | G112: =G111 -> 519.01
A114: MÓDULO 5 - INSUMOS DIVERSOS
A116: 5 | B116: Insumos Diversos | G116: Valor (R$)
A117: A | B117: Uniformes
B118: Total | G118: =SUM(G117) -> 0
A120: MÓDULO 6 - CUSTOS INDIRETOS, TRIBUTOS E LUCRO
A122: 6 | B122: Custos Indiretos, Tributos e Lucro | F122: % | G122: Valor (R$)
A123: A | B123: Custos Indiretos | F123: ='Ass. Adm. II'!F123 -> 0.025 | G123: =G139*F123 -> 171.46
A124: B | B124: Lucro | F124: ='Ass. Adm. II'!F124 -> 0.05 | G124: =(G139+G123)*F124 -> 351.49
A125: C | B125: Tributos
A126: c.1 | B126: COFINS | F126: ='Ass. Adm. II'!F126 -> 0.03 | G126: =E146 -> 242.41
A127: c.2 | B127: PIS | F127: ='Ass. Adm. II'!F127 -> 0.0065 | G127: 52.52
A128: c.3 | B128: ISSQN | F128: ='Ass. Adm. II'!F128 -> 0.05 | G128: 404.02
B129: Total | F129: ='Ass. Adm. II'!F129 -> 0.1615 | G129: =SUM(G123:G128) -> 1221.9
A131: 2. QUADRO - RESUMO DO CUSTO POR EMPREGADO
B133: Mão de obra vinculada à execução contratual (valor por empregado) | G133: Valor (R$)
A134: A | B134: Módulo 1 - Composição da Remuneração | G134: =G39 -> 3378.33
A135: B | B135: Módulo 2 - Encargos e Benefícios Anuais, Mensais e Diários | G135: =G77 -> 2475.8
A136: C | B136: Módulo 3 - Provisão para recisão | G136: =G87 -> 485.19
A137: D | B137: Módulo 4 - Custo de Reposição do Profissional Ausente | G137: =G112 -> 519.01
A138: E | B138: Módulo 5 - Insumos diversos | G138: =G118 -> 0
A139: Subtotal ( A + B +C + D + E) | G139: =SUM(G134:G138) -> 6858.33
A140: F | B140: Módulo 6 - Custos indiretos, Tributos e lucro | G140: =G129 -> 1221.9
A141: Valor total por empregado | G141: =G139+G140 -> 8080.23
A143: P0 = (MÓD 1+MÓD 2+MÓD 3+MÓD 4+MÓD 5) + (CI) + (L) | E143: =G39+G77+G87+G112+G118+G123+G124 -> 7381.28
A144: P1 = P0/(1 - (pis+confins+iss)) | E144: =E143/(1-(F126+F127+F128))+0.01 -> 8080.23
A145: T = P1 - P0 | E145: =E144-E143 -> 698.95
A146: COFINS = ((cofins)/(pis+cofins+iss) x T | E146: =((F126)/(F126+F127+F128))*E145 -> 242.41
A147: PIS = ((pis)/(pis+cofins+iss) x T | E147: =((F127)/(F126+F127+F128))*E145 -> 52.52
A148: ISS = (iss/(pis+cofins+iss)) x T | E148: =((F128/(F126+F127+F128))*E145) -> 404.02

Sheet Ass. Sup. I
A6: PLANILHA DE CUSTOS E FORMAÇÃO DE PREÇOS
B8: ='Ass. Adm. III'!B8 -> Nº Processo | E8: ='Ass. Adm. III'!E8 -> 59530.001233/2024-60
B9: ='Ass. Adm. III'!B9 -> Licitação nº
A10: DISCRIMINAÇÃO DOS SERVIÇOS (dados referentes à contratação)
A12: A | B12: Ano do Acordo, Convenção ou Dissídio Coletivo | F12: 2024 - PE000123/2024
A13: B | B13: Município/UF | F13: Petrolina/PE
A14: C | B14: Data de Registro no MTE | F14: 20/02/2024
A15: D | B15: Nº de meses de execução contratual | F15: 12 (doze) meses
A17: IDENTIFICAÇÃO DO SERVIÇO
A19: Tipo de Serviço | C19: Unidade de Medida | E19: Quantidade total a contratar (em função da unidade de medida)
A20: Assistente de Superintendência I - Nível I (A3) | C20: Posto de serviço | E20: 1
A22: 1. MÓDULOS
A24: MÃO DE OBRA
A25: Mão de obra vinculada à execução contratual
A27: Dados para composição dos custos referente à mão de obra
A28: 1 | B28: Tipo de serviço | G28: =A20 -> Assistente de Superintendência I - Nível I (A3)
A29: 2 | B29: Classificação Brasileira de Ocupações (CBO) | G29: 4110-10 | H29: 2021 | I29: 2022 | J29: 2023 | K29: 2024
A30: 3 | B30: Salário Normativo da Categoria Profissional | G30: =K35 -> 3378.33 | H30: 0.0393 | I30: 0.06 | J30: 0.0593 | K30: 0.0371
A31: 4 | B31: Categoria profissional (vinculada à execução contratual) | G31: Administrativo
A32: 5 | B32: Data-Base da categoria (dia/mês/ano) | G32: ='Ass. Adm. I'!G32 -> 1º/01/2024 | H32: 4000 | I32: 4000 | J32: 4000 | K32: 2000-5000
H34: 2791.36
A35: MÓDULO 1: COMPOSIÇÃO DA REMUNERAÇÃO | H35: =H34*1.0393 -> 2901.06 | I35: =H35*1.06 -> 3075.12 | J35: =I35*1.0593 -> 3257.47 | K35: =J35*1.0371+0.01 -> 3378.33
A37: 1 | B37: Composição da Remuneração | G37: Valor (R$)
A38: A | B38: Salário Base | G38: =G30 -> 3378.33
B39: Total | G39: =G38 -> 3378.33
A41: MÓDULO 2: ENCARGOS E BENEFÍCIOS ANUAIS, MENSAIS E DIÁRIOS
A43: Submódulo 2.1 - 13º (décimo terceiro) Salário, Férias e Adicional de Férias
A45: 2.1 | B45: 13º (décimo terceiro) Salário, Férias e Adicional de Férias | F45: % | G45: Valor (R$)
A46: A | B46: 13º (décimo terceiro) Salário | F46: ='Ass. Adm. II'!F46 -> 0.0833 | G46: =G39*F46 -> 281.41
A47: B | B47: Férias e Adicional de Férias | F47: ='Ass. Adm. II'!F47 -> 0.1111 | G47: =G39*F47 -> 375.33
A48: TOTAL | F48: ='Ass. Adm. II'!F48 -> 0.1944 | G48: =SUM(G46:G47) -> 656.74
A50: Submódulo 2.2 - Encargos previdenciários (GPS), Fundo de Garantia por tempo de Serviço (FGTS) e outras contribuições:
A52: 2.2 | B52: GPS, FGTS e outras contribuiçoes | F52: % | G52: Valor (R$)
A53: A | B53: INSS | F53: ='Ass. Adm. II'!F53 -> 0.2 | G53: =($G$39+$G$48)*F53 -> 807.01
A54: B | B54: Salário Educação | F54: ='Ass. Adm. II'!F54 -> 0.025 | G54: 100.88
A55: C | B55: Seguro Acidente do Trabalho/SAT/INSS | F55: ='Ass. Adm. II'!F55 -> 0.03 | G55: 121.05
A56: D | B56: SESI/SESC | F56: ='Ass. Adm. II'!F56 -> 0.015 | G56: 60.53
A57: E | B57: SENAI/SENAC | F57: ='Ass. Adm. II'!F57 -> 0.01 | G57: 40.35
A58: F | B58: INCRA | F58: ='Ass. Adm. II'!F58 -> 0.002 | G58: 8.07
A59: G | B59: FGTS | F59: ='Ass. Adm. II'!F59 -> 0.08 | G59: 322.81
A60: H | B60: SEBRAE | F60: ='Ass. Adm. II'!F60 -> 0.006 | G60: 24.21
A61: TOTAL | F61: =SUM(F53:F60) -> 0.368 | G61: =SUM(G53:G60) -> 1484.91
A63: Submódulo 2.3 - Benefícios Mensais e Diários
A65: 2.3 | B65: Benefícios Mensais e Diários | G65: Valor (R$)
A66: A | B66: Transporte | G66: =IF((5*2*22)-(6%*G38)>0,(5*2*22)-(6%*G38),0) -> 17.3 | I66: =6%*G38 -> 202.7 | J66: = 6% do salario base
A67: B | B67: Auxílio alimentação (Cláusula 11ª CCT 2024) | G67: ='Ass. Adm. I'!G67 -> 242 | I67: 5*2*22 = | J67: 220
A68: C | B68: Outros (Cobertura Social - Cláusula 15ª CCT 2024) | G68: ='Ass. Adm. I'!G68 -> 74.85 | I68: 220-202,70 | J68: =J67-I66 -> 17.3
B69: Total de Benefícios mensais e diários | G69: =SUM(G66:G68) -> 334.15
A71: QUADRO RESUMO DO MÓDULO 2 - Encargos e Benefícios anuais, mensais e diários
A73: 2 | B73: Encargos e Benefícios anuais, mensais e diários | G73: Valor (R$)
A74: 2.1 | B74: 13º (décimo terceiro) Salário, Férias e Adicional de Férias | G74: =G48 -> 656.74
A75: 2.2 | B75: GPS, FGTS e outras contribuiçoes | G75: =G61 -> 1484.91
A76: 2.3 | B76: Benefícios Mensais e Diários | G76: =G69 -> 334.15
A77: TOTAL | G77: =SUM(G74:G76) -> 2475.8
A79: MÓDULO 3 - PROVISÃO PARA RESCISÃO
I80: GPS
A81: 3 | B81: Provisão para Rescisão | G81: Valor (R$)
A82: A | B82: Aviso prévio indenizado | G82: =J82 -> 160.55 | H82: =G39+G77-I82 -> 4692.03 | I82: =(G39+G48)*0.288 -> 1162.1 | J82: =H82/12*0.4106 -> 160.55
A83: B | B83: Multa do FGTS e contribuição social sobre o Aviso Prévio Indenizado | G83: =I83 -> 66.27 | H83: =G59 -> 322.81 | I83: =(H83*0.4+H83*0.1)*0.4106 -> 66.27 | J83: =H83*0.5*0.4106 -> 66.27
A84: C | B84: Aviso Prévio Trabalhado | G84: 200.31 | H84: =G39+G77 -> 5854.13 | I84: =H84/12*0.4106 -> 200.31
A85: D | B85: Multa do FGTS e contribuição social sobre o Aviso Prévio Trabalhado | G85: 66.27 | H85: =G59 -> 322.81 | I85: =(H85*0.4+H85*0.1)*0.4106 -> 66.27 | J85: =H85*0.5*0.4106 -> 66.27
A86: E | B86: Demissão com Justa Causa | G86: =K86 -> -8.21 | H86: =G46 -> 281.41 | I86: =G47 -> 375.33 | J86: =H86+I86 -> 656.74 | K86: =-J86*0.0125 -> -8.21
A87: TOTAL | G87: =SUM(G82:G86) -> 485.19
A89: MÓDULO 4 - CUSTO DE REPOSIÇÃO DO PROFISSIONAL AUSENTE
A91: Submódulo 4.1 - Ausências Legais
A92: 4.1 | B92: Ausências legais | F92: Dias/Ano | G92: Valor (R$)
A93: A | B93: Férias | F93: ='Ass. Adm. II'!F93 -> 20.9589 | G93: =$I$93*F93/12+0 -> 369.07 | H93: =G39+G77+G87 -> 6339.32 | I93: =H93/30 -> 211.31 | J93: =I93*F105 -> 6228.11 | K93: =J93/12 -> 519.01
A94: B | B94: Ausência justificada | F94: ='Ass. Adm. II'!F94 -> 1 | G94: =$I$93*F94/12 -> 17.61
A95: C | B95: Acidente de trabalho | F95: ='Ass. Adm. II'!F95 -> 0.9659 | G95: 17.01
A96: D | B96: Afastamento por doença | F96: ='Ass. Adm. II'!F96 -> 3.4932 | G96: 61.51
A97: E | B97: Consulta médica filho | F97: ='Ass. Adm. II'!F97 -> 0.2688 | G97: 4.73
A98: F | B98: Óbitos na família | F98: ='Ass. Adm. II'!F98 -> 0.0427 | G98: 0.75
A99: G | B99: Casamento | F99: ='Ass. Adm. II'!F99 -> 0.0355 | G99: 0.63
A100: H | B100: Doação de Sangue | F100: ='Ass. Adm. II'!F100 -> 0.02 | G100: 0.35
A101: I | B101: Testemunho | F101: ='Ass. Adm. II'!F101 -> 0.004 | G101: 0.07
A102: J | B102: Paternidade | F102: ='Ass. Adm. II'!F102 -> 0.1997 | G102: 3.52
A103: K | B103: Maternidade | F103: ='Ass. Adm. II'!F103 -> 2.4753 | G103: 43.59
A104: L | B104: Consulta pré-natal | F104: ='Ass. Adm. II'!F104 -> 0.0098 | G104: 0.17
A105: TOTAL | F105: ='Ass. Adm. II'!F105 -> 29.4738 | G105: =SUM(G93:G104) -> 519.01
A108: QUADRO RESUMO DO MÓDULO 4 - Custo de Reposição do Profissional Ausente
A110: 4 | B110: Custo de Reposição do Profissional Ausente | G110: Valor (R$)
A111: 4.1 | B111: Ausências legais | G111: =G105 -> 519.01
A112: TOTAL | G112: =G111 -> 519.01
A114: MÓDULO 5 - INSUMOS DIVERSOS
A116: 5 | B116: Insumos Diversos | G116: Valor (R$)
A117: A | B117: Uniformes
B118: Total | G118: =SUM(G117) -> 0
A120: MÓDULO 6 - CUSTOS INDIRETOS, TRIBUTOS E LUCRO
A122: 6 | B122: Custos Indiretos, Tributos e Lucro | F122: % | G122: Valor (R$)
A123: A | B123: Custos Indiretos | F123: ='Ass. Adm. II'!F123 -> 0.025 | G123: =G139*F123 -> 171.46
A124: B | B124: Lucro | F124: ='Ass. Adm. II'!F124 -> 0.05 | G124: =(G139+G123)*F124 -> 351.49
A125: C | B125: Tributos
A126: c.1 | B126: COFINS | F126: ='Ass. Adm. II'!F126 -> 0.03 | G126: =E146 -> 242.41
A127: c.2 | B127: PIS | F127: ='Ass. Adm. II'!F127 -> 0.0065 | G127: 52.52
A128: c.3 | B128: ISSQN | F128: ='Ass. Adm. II'!F128 -> 0.05 | G128: 404.02
B129: Total | F129: ='Ass. Adm. II'!F129 -> 0.1615 | G129: =SUM(G123:G128) -> 1221.9
A131: 2. QUADRO - RESUMO DO CUSTO POR EMPREGADO
B133: Mão de obra vinculada à execução contratual (valor por empregado) | G133: Valor (R$)
A134: A | B134: Módulo 1 - Composição da Remuneração | G134: =G39 -> 3378.33
A135: B | B135: Módulo 2 - Encargos e Benefícios Anuais, Mensais e Diários | G135: =G77 -> 2475.8
A136: C | B136: Módulo 3 - Provisão para recisão | G136: =G87 -> 485.19
A137: D | B137: Módulo 4 - Custo de Reposição do Profissional Ausente | G137: =G112 -> 519.01
A138: E | B138: Módulo 5 - Insumos diversos | G138: =G118 -> 0
A139: Subtotal ( A + B +C + D + E) | G139: =SUM(G134:G138) -> 6858.33
A140: F | B140: Módulo 6 - Custos indiretos, Tributos e lucro | G140: =G129 -> 1221.9
A141: Valor total por empregado | G141: =G139+G140 -> 8080.23
A143: P0 = (MÓD 1+MÓD 2+MÓD 3+MÓD 4+MÓD 5) + (CI) + (L) | E143: =G39+G77+G87+G112+G118+G123+G124 -> 7381.28
A144: P1 = P0/(1 - (pis+confins+iss)) | E144: =E143/(1-(F126+F127+F128))+0.01 -> 8080.23
A145: T = P1 - P0 | E145: =E144-E143 -> 698.95
A146: COFINS = ((cofins)/(pis+cofins+iss) x T | E146: =((F126)/(F126+F127+F128))*E145 -> 242.41
A147: PIS = ((pis)/(pis+cofins+iss) x T | E147: =((F127)/(F126+F127+F128))*E145 -> 52.52
A148: ISS = (iss/(pis+cofins+iss)) x T | E148: =((F128/(F126+F127+F128))*E145) -> 404.02

Sheet Ass. Sup. II
A6: PLANILHA DE CUSTOS E FORMAÇÃO DE PREÇOS
B8: ='Ass. Adm. III'!B8 -> Nº Processo | E8: ='Ass. Adm. III'!E8 -> 59530.001233/2024-60
B9: ='Ass. Adm. III'!B9 -> Licitação nº
A10: DISCRIMINAÇÃO DOS SERVIÇOS (dados referentes à contratação)
A12: A | B12: Ano do Acordo, Convenção ou Dissídio Coletivo | F12: 2024 - PE000123/2024
A13: B | B13: Município/UF | F13: Petrolina/PE
A14: C | B14: Data de Registro no MTE | F14: 20/02/2024
A15: D | B15: Nº de meses de execução contratual | F15: 12 (doze) meses
A17: IDENTIFICAÇÃO DO SERVIÇO
A19: Tipo de Serviço | C19: Unidade de Medida | E19: Quantidade total a contratar (em função da unidade de medida)
A20: Assistente de Superintendência II - Nível II (AS) | C20: Posto de serviço | E20: 1
A22: 1. MÓDULOS
A24: MÃO DE OBRA
A25: Mão de obra vinculada à execução contratual
A27: Dados para composição dos custos referente à mão de obra
A28: 1 | B28: Tipo de serviço | G28: =A20 -> Assistente de Superintendência II - Nível II (AS)
A29: 2 | B29: Classificação Brasileira de Ocupações (CBO) | G29: 4110-10 | H29: 2021 | I29: 2022 | J29: 2023 | K29: 2024
A30: 3 | B30: Salário Normativo da Categoria Profissional | G30: =K37 -> 6336.55 | H30: 0.0393 | I30: 0.06 | J30: 0.0593 | K30: 0.0371
A31: 4 | B31: Categoria profissional (vinculada à execução contratual) | G31: Administrativo
A32: 5 | B32: Data-Base da categoria (dia/mês/ano) | G32: ='Ass. Adm. I'!G32 -> 1º/01/2024 | H32: 4000 | I32: 4000 | J32: 4000 | K32: 2000-5000
H34: 5874.88
A35: MÓDULO 1: COMPOSIÇÃO DA REMUNERAÇÃO | H35: =H34*1.0393 -> 6105.76 | I35: =H35*1.06 -> 6472.11 | J35: =I35*1.0593 -> 6855.91 | K35: =J35*1.0371 -> 7110.26
A37: 1 | B37: Composição da Remuneração | G37: Valor (R$) | K37: 6336.55
A38: A | B38: Salário Base | G38: =G30 -> 6336.55
B39: Total | G39: =G38 -> 6336.55
A41: MÓDULO 2: ENCARGOS E BENEFÍCIOS ANUAIS, MENSAIS E DIÁRIOS
A43: Submódulo 2.1 - 13º (décimo terceiro) Salário, Férias e Adicional de Férias
A45: 2.1 | B45: 13º (décimo terceiro) Salário, Férias e Adicional de Férias | F45: % | G45: Valor (R$)
A46: A | B46: 13º (décimo terceiro) Salário | F46: ='Ass. Adm. II'!F46 -> 0.0833 | G46: =G39*F46 -> 527.83
A47: B | B47: Férias e Adicional de Férias | F47: ='Ass. Adm. II'!F47 -> 0.1111 | G47: =G39*F47 -> 703.99
A48: TOTAL | F48: ='Ass. Adm. II'!F48 -> 0.1944 | G48: =SUM(G46:G47) -> 1231.82
A50: Submódulo 2.2 - Encargos previdenciários (GPS), Fundo de Garantia por tempo de Serviço (FGTS) e outras contribuições:
A52: 2.2 | B52: GPS, FGTS e outras contribuiçoes | F52: % | G52: Valor (R$)
A53: A | B53: INSS | F53: ='Ass. Adm. II'!F53 -> 0.2 | G53: =($G$39+$G$48)*F53 -> 1513.67
A54: B | B54: Salário Educação | F54: ='Ass. Adm. II'!F54 -> 0.025 | G54: 189.21
A55: C | B55: Seguro Acidente do Trabalho/SAT/INSS | F55: ='Ass. Adm. II'!F55 -> 0.03 | G55: 227.05
A56: D | B56: SESI/SESC | F56: ='Ass. Adm. II'!F56 -> 0.015 | G56: 113.53
A57: E | B57: SENAI/SENAC | F57: ='Ass. Adm. II'!F57 -> 0.01 | G57: 75.68
A58: F | B58: INCRA | F58: ='Ass. Adm. II'!F58 -> 0.002 | G58: 15.14
A59: G | B59: FGTS | F59: ='Ass. Adm. II'!F59 -> 0.08 | G59: 605.47
A60: H | B60: SEBRAE | F60: ='Ass. Adm. II'!F60 -> 0.006 | G60: 45.41
A61: TOTAL | F61: =SUM(F53:F60) -> 0.368 | G61: =SUM(G53:G60) -> 2785.16
A63: Submódulo 2.3 - Benefícios Mensais e Diários
A65: 2.3 | B65: Benefícios Mensais e Diários | G65: Valor (R$)
A66: A | B66: Transporte | G66: =IF((5*2*22)-(6%*G38)>0,(5*2*22)-(6%*G38),0) -> 0 | I66: =6%*G38 -> 380.19 | J66: = 6% do salario base
A67: B | B67: Auxílio alimentação (Cláusula 11ª CCT 2024) | G67: ='Ass. Adm. I'!G67 -> 242 | I67: 5*2*22 = | J67: 220
A68: C | B68: Outros (Cobertura Social - Cláusula 15ª CCT 2024) | G68: ='Ass. Adm. I'!G68 -> 74.85 | I68: 220-380,19 = | J68: =J67-I66 -> -160.19
B69: Total de Benefícios mensais e diários | G69: =SUM(G66:G68) -> 316.85
A71: QUADRO RESUMO DO MÓDULO 2 - Encargos e Benefícios anuais, mensais e diários
A73: 2 | B73: Encargos e Benefícios anuais, mensais e diários | G73: Valor (R$)
A74: 2.1 | B74: 13º (décimo terceiro) Salário, Férias e Adicional de Férias | G74: =G48 -> 1231.82
A75: 2.2 | B75: GPS, FGTS e outras contribuiçoes | G75: =G61 -> 2785.16
A76: 2.3 | B76: Benefícios Mensais e Diários | G76: =G69 -> 316.85
A77: TOTAL | G77: =SUM(G74:G76) -> 4333.83
A79: MÓDULO 3 - PROVISÃO PARA RESCISÃO
I80: GPS
A81: 3 | B81: Provisão para Rescisão | G81: Valor (R$)
A82: A | B82: Aviso prévio indenizado | G82: =J82 -> 290.52 | H82: =G39+G77-I82 -> 8490.69 | I82: =(G39+G48)*0.288 -> 2179.69 | J82: =H82/12*0.4106 -> 290.52
A83: B | B83: Multa do FGTS e contribuição social sobre o Aviso Prévio Indenizado | G83: =I83 -> 124.3 | H83: =G59 -> 605.47 | I83: =(H83*0.4+H83*0.1)*0.4106 -> 124.3 | J83: =H83*0.5*0.4106 -> 124.3
A84: C | B84: Aviso Prévio Trabalhado | G84: 365.1 | H84: =G39+G77 -> 10670.38 | I84: =H84/12*0.4106 -> 365.1
A85: D | B85: Multa do FGTS e contribuição social sobre o Aviso Prévio Trabalhado | G85: 124.3 | H85: =G59 -> 605.47 | I85: =(H85*0.4+H85*0.1)*0.4106 -> 124.3 | J85: =H85*0.5*0.4106 -> 124.3
A86: E | B86: Demissão com Justa Causa | G86: =K86 -> -15.4 | H86: =G46 -> 527.83 | I86: =G47 -> 703.99 | J86: =H86+I86 -> 1231.82 | K86: =-J86*0.0125 -> -15.4
A87: TOTAL | G87: =SUM(G82:G86) -> 888.82
A89: MÓDULO 4 - CUSTO DE REPOSIÇÃO DO PROFISSIONAL AUSENTE
A91: Submódulo 4.1 - Ausências Legais
A92: 4.1 | B92: Ausências legais | F92: Dias/Ano | G92: Valor (R$)
A93: A | B93: Férias | F93: ='Ass. Adm. II'!F93 -> 20.9589 | G93: =$I$93*F93/12+0.01 -> 672.98 | H93: =G39+G77+G87 -> 11559.2 | I93: =H93/30 -> 385.31 | J93: =I93*F105 -> 11356.55 | K93: =J93/12 -> 946.38
A94: B | B94: Ausência justificada | F94: ='Ass. Adm. II'!F94 -> 1 | G94: =$I$93*F94/12 -> 32.11
A95: C | B95: Acidente de trabalho | F95: ='Ass. Adm. II'!F95 -> 0.9659 | G95: 31.01
A96: D | B96: Afastamento por doença | F96: ='Ass. Adm. II'!F96 -> 3.4932 | G96: =$I$93*F96/12+0.01 -> 112.17
A97: E | B97: Consulta médica filho | F97: ='Ass. Adm. II'!F97 -> 0.2688 | G97: 8.63
A98: F | B98: Óbitos na família | F98: ='Ass. Adm. II'!F98 -> 0.0427 | G98: 1.37
A99: G | B99: Casamento | F99: ='Ass. Adm. II'!F99 -> 0.0355 | G99: 1.14
A100: H | B100: Doação de Sangue | F100: ='Ass. Adm. II'!F100 -> 0.02 | G100: 0.64
A101: I | B101: Testemunho | F101: ='Ass. Adm. II'!F101 -> 0.004 | G101: 0.13
A102: J | B102: Paternidade | F102: ='Ass. Adm. II'!F102 -> 0.1997 | G102: 6.41
A103: K | B103: Maternidade | F103: ='Ass. Adm. II'!F103 -> 2.4753 | G103: 79.48
A104: L | B104: Consulta pré-natal | F104: ='Ass. Adm. II'!F104 -> 0.0098 | G104: 0.31
A105: TOTAL | F105: ='Ass. Adm. II'!F105 -> 29.4738 | G105: =SUM(G93:G104) -> 946.38
A108: QUADRO RESUMO DO MÓDULO 4 - Custo de Reposição do Profissional Ausente
A110: 4 | B110: Custo de Reposição do Profissional Ausente | G110: Valor (R$)
A111: 4.1 | B111: Ausências legais | G111: =G105 -> 946.38
A112: TOTAL | G112: =G111 -> 946.38
A114: MÓDULO 5 - INSUMOS DIVERSOS
A116: 5 | B116: Insumos Diversos | G116: Valor (R$)
A117: A | B117: Uniformes
B118: Total | G118: =SUM(G117) -> 0
A120: MÓDULO 6 - CUSTOS INDIRETOS, TRIBUTOS E LUCRO
A122: 6 | B122: Custos Indiretos, Tributos e Lucro | F122: % | G122: Valor (R$)
A123: A | B123: Custos Indiretos | F123: ='Ass. Adm. II'!F123 -> 0.025 | G123: =G139*F123 -> 312.64
A124: B | B124: Lucro | F124: ='Ass. Adm. II'!F124 -> 0.05 | G124: =(G139+G123)*F124 -> 640.91
A125: C | B125: Tributos
A126: c.1 | B126: COFINS | F126: ='Ass. Adm. II'!F126 -> 0.03 | G126: =E146 -> 442.01
A127: c.2 | B127: PIS | F127: ='Ass. Adm. II'!F127 -> 0.0065 | G127: 95.77
A128: c.3 | B128: ISSQN | F128: ='Ass. Adm. II'!F128 -> 0.05 | G128: 736.68
B129: Total | F129: ='Ass. Adm. II'!F129 -> 0.1615 | G129: =SUM(G123:G128) -> 2228.01
A131: 2. QUADRO - RESUMO DO CUSTO POR EMPREGADO
B133: Mão de obra vinculada à execução contratual (valor por empregado) | G133: Valor (R$)
A134: A | B134: Módulo 1 - Composição da Remuneração | G134: =G39 -> 6336.55
A135: B | B135: Módulo 2 - Encargos e Benefícios Anuais, Mensais e Diários | G135: =G77 -> 4333.83
A136: C | B136: Módulo 3 - Provisão para recisão | G136: =G87 -> 888.82
A137: D | B137: Módulo 4 - Custo de Reposição do Profissional Ausente | G137: =G112 -> 946.38
A138: E | B138: Módulo 5 - Insumos diversos | G138: =G118 -> 0
A139: Subtotal ( A + B +C + D + E) | G139: =SUM(G134:G138) -> 12505.58
A140: F | B140: Módulo 6 - Custos indiretos, Tributos e lucro | G140: =G129 -> 2228.01
A141: Valor total por empregado | G141: =G139+G140 -> 14733.59
A143: P0 = (MÓD 1+MÓD 2+MÓD 3+MÓD 4+MÓD 5) + (CI) + (L) | E143: =G39+G77+G87+G112+G118+G123+G124 -> 13459.13
A144: P1 = P0/(1 - (pis+confins+iss)) | E144: =E143/(1-(F126+F127+F128)) -> 14733.59
A145: T = P1 - P0 | E145: =E144-E143 -> 1274.46
A146: COFINS = ((cofins)/(pis+cofins+iss) x T | E146: =((F126)/(F126+F127+F128))*E145 -> 442.01
A147: PIS = ((pis)/(pis+cofins+iss) x T | E147: =((F127)/(F126+F127+F128))*E145 -> 95.77
A148: ISS = (iss/(pis+cofins+iss)) x T | E148: =((F128/(F126+F127+F128))*E145) -> 736.68

Sheet Analista
A6: PLANILHA DE CUSTOS E FORMAÇÃO DE PREÇOS
B8: ='Ass. Adm. III'!B8 -> Nº Processo | E8: ='Ass. Adm. III'!E8 -> 59530.001233/2024-60
B9: ='Ass. Adm. III'!B9 -> Licitação nº
A10: DISCRIMINAÇÃO DOS SERVIÇOS (dados referentes à contratação)
A12: A | B12: Ano do Acordo, Convenção ou Dissídio Coletivo | F12: 2024 - PE000123/2024
A13: B | B13: Município/UF | F13: Petrolina/PE
A14: C | B14: Data de Registro no MTE | F14: 20/02/2024
A15: D | B15: Nº de meses de execução contratual | F15: 12 (doze) meses
A17: IDENTIFICAÇÃO DO SERVIÇO
A19: Tipo de Serviço | C19: Unidade de Medida | E19: Quantidade total a contratar (em função da unidade de medida)
A20: Analista Sênior | C20: Posto de serviço | E20: 1
A22: 1. MÓDULOS
A24: MÃO DE OBRA
A25: Mão de obra vinculada à execução contratual
A27: Dados para composição dos custos referente à mão de obra
A28: 1 | B28: Tipo de serviço | G28: =A20 -> Analista Sênior
A29: 2 | B29: Classificação Brasileira de Ocupações (CBO) | G29: 4110-10 | H29: 2021 | I29: 2022 | J29: 2023 | K29: 2024
A30: 3 | B30: Salário Normativo da Categoria Profissional | G30: =K36 -> 7399.45 | H30: 0.0393 | I30: 0.06 | J30: 0.0593 | K30: 0.0371
A31: 4 | B31: Categoria profissional (vinculada à execução contratual) | G31: Analista
A32: 5 | B32: Data-Base da categoria (dia/mês/ano) | G32: ='Ass. Adm. I'!G32 -> 1º/01/2024 | H32: 4000 | I32: 4000 | J32: 4000 | K32: 2000-5000
H34: 6716.16
A35: MÓDULO 1: COMPOSIÇÃO DA REMUNERAÇÃO | H35: =H34*1.0393 -> 6980.11 | I35: =H35*1.06 -> 7398.92 | J35: =I35*1.0593 -> 7837.68 | K35: =J35*1.0371 -> 8128.46
J36: 7134.75 | K36: =J36*1.0371 -> 7399.45
A37: 1 | B37: Composição da Remuneração | G37: Valor (R$)
A38: A | B38: Salário Base | G38: =G30 -> 7399.45
B39: Total | G39: =G38 -> 7399.45
A41: MÓDULO 2: ENCARGOS E BENEFÍCIOS ANUAIS, MENSAIS E DIÁRIOS
A43: Submódulo 2.1 - 13º (décimo terceiro) Salário, Férias e Adicional de Férias
A45: 2.1 | B45: 13º (décimo terceiro) Salário, Férias e Adicional de Férias | F45: % | G45: Valor (R$)
A46: A | B46: 13º (décimo terceiro) Salário | F46: ='Ass. Adm. II'!F46 -> 0.0833 | G46: =G39*F46 -> 616.37
A47: B | B47: Férias e Adicional de Férias | F47: ='Ass. Adm. II'!F47 -> 0.1111 | G47: =G39*F47 -> 822.08
A48: TOTAL | F48: ='Ass. Adm. II'!F48 -> 0.1944 | G48: =SUM(G46:G47) -> 1438.45
A50: Submódulo 2.2 - Encargos previdenciários (GPS), Fundo de Garantia por tempo de Serviço (FGTS) e outras contribuições:
A52: 2.2 | B52: GPS, FGTS e outras contribuiçoes | F52: % | G52: Valor (R$)
A53: A | B53: INSS | F53: ='Ass. Adm. II'!F53 -> 0.2 | G53: =($G$39+$G$48)*F53 -> 1767.58
A54: B | B54: Salário Educação | F54: ='Ass. Adm. II'!F54 -> 0.025 | G54: =($G$39+$G$48)*F54 -> 220.95
A55: C | B55: Seguro Acidente do Trabalho/SAT/INSS | F55: ='Ass. Adm. II'!F55 -> 0.03 | G55: 265.14
A56: D | B56: SESI/SESC | F56: ='Ass. Adm. II'!F56 -> 0.015 | G56: 132.57
A57: E | B57: SENAI/SENAC | F57: ='Ass. Adm. II'!F57 -> 0.01 | G57: 88.38
A58: F | B58: INCRA | F58: ='Ass. Adm. II'!F58 -> 0.002 | G58: 17.68
A59: G | B59: FGTS | F59: ='Ass. Adm. II'!F59 -> 0.08 | G59: 707.03
A60: H | B60: SEBRAE | F60: ='Ass. Adm. II'!F60 -> 0.006 | G60: 53.03
A61: TOTAL | F61: =SUM(F53:F60) -> 0.368 | G61: =SUM(G53:G60) -> 3252.36
A63: Submódulo 2.3 - Benefícios Mensais e Diários
A65: 2.3 | B65: Benefícios Mensais e Diários | G65: Valor (R$)
A66: A | B66: Transporte | G66: =IF((5*2*22)-(6%*G38)>0,(5*2*22)-(6%*G38),0) -> 0 | I66: =6%*G38 -> 443.97 | J66: = 6% do salario base
A67: B | B67: Auxílio alimentação (Cláusula 11ª CCT 2024) | G67: ='Ass. Adm. I'!G67 -> 242 | I67: 5*2*22 = | J67: 220
A68: C | B68: Outros (Cobertura Social - Cláusula 15ª CCT 2024) | G68: ='Ass. Adm. I'!G68 -> 74.85 | I68: 220-443,97 = | J68: =J67-I66 -> -223.97
B69: Total de Benefícios mensais e diários | G69: =SUM(G66:G68) -> 316.85
A71: QUADRO RESUMO DO MÓDULO 2 - Encargos e Benefícios anuais, mensais e diários
A73: 2 | B73: Encargos e Benefícios anuais, mensais e diários | G73: Valor (R$)
A74: 2.1 | B74: 13º (décimo terceiro) Salário, Férias e Adicional de Férias | G74: =G48 -> 1438.45
A75: 2.2 | B75: GPS, FGTS e outras contribuiçoes | G75: =G61 -> 3252.36
A76: 2.3 | B76: Benefícios Mensais e Diários | G76: =G69 -> 316.85
A77: TOTAL | G77: =SUM(G74:G76) -> 5007.66
A79: MÓDULO 3 - PROVISÃO PARA RESCISÃO
I80: GPS
A81: 3 | B81: Provisão para Rescisão | G81: Valor (R$)
A82: A | B82: Aviso prévio indenizado | G82: =J82 -> 337.44 | H82: =G39+G77-I82 -> 9861.79 | I82: =(G39+G48)*0.288 -> 2545.32 | J82: =H82/12*0.4106 -> 337.44
A83: B | B83: Multa do FGTS e contribuição social sobre o Aviso Prévio Indenizado | G83: =I83 -> 145.15 | H83: =G59 -> 707.03 | I83: =(H83*0.4+H83*0.1)*0.4106 -> 145.15 | J83: =H83*0.5*0.4106 -> 145.15
A84: C | B84: Aviso Prévio Trabalhado | G84: 424.53 | H84: =G39+G77 -> 12407.11 | I84: =H84/12*0.4106 -> 424.53
A85: D | B85: Multa do FGTS e contribuição social sobre o Aviso Prévio Trabalhado | G85: 145.15 | H85: =G59 -> 707.03 | I85: =(H85*0.4+H85*0.1)*0.4106 -> 145.15 | J85: =H85*0.5*0.4106 -> 145.15
A86: E | B86: Demissão com Justa Causa | G86: =K86 -> -17.98 | H86: =G46 -> 616.37 | I86: =G47 -> 822.08 | J86: =H86+I86 -> 1438.45 | K86: =-J86*0.0125 -> -17.98
A87: TOTAL | G87: =SUM(G82:G86) -> 1034.29
A89: MÓDULO 4 - CUSTO DE REPOSIÇÃO DO PROFISSIONAL AUSENTE
A91: Submódulo 4.1 - Ausências Legais
A92: 4.1 | B92: Ausências legais | F92: Dias/Ano | G92: Valor (R$)
A93: A | B93: Férias | F93: ='Ass. Adm. II'!F93 -> 20.9589 | G93: =$I$93*F93/12-0.01 -> 782.54 | H93: =G39+G77+G87 -> 13441.4 | I93: =H93/30 -> 448.05 | J93: =I93*F105 -> 13205.74 | K93: =J93/12 -> 1100.48
A94: B | B94: Ausência justificada | F94: ='Ass. Adm. II'!F94 -> 1 | G94: =$I$93*F94/12 -> 37.34
A95: C | B95: Acidente de trabalho | F95: ='Ass. Adm. II'!F95 -> 0.9659 | G95: 36.06
A96: D | B96: Afastamento por doença | F96: ='Ass. Adm. II'!F96 -> 3.4932 | G96: 130.43
A97: E | B97: Consulta médica filho | F97: ='Ass. Adm. II'!F97 -> 0.2688 | G97: 10.04
A98: F | B98: Óbitos na família | F98: ='Ass. Adm. II'!F98 -> 0.0427 | G98: 1.59
A99: G | B99: Casamento | F99: ='Ass. Adm. II'!F99 -> 0.0355 | G99: 1.33
A100: H | B100: Doação de Sangue | F100: ='Ass. Adm. II'!F100 -> 0.02 | G100: 0.75
A101: I | B101: Testemunho | F101: ='Ass. Adm. II'!F101 -> 0.004 | G101: 0.15
A102: J | B102: Paternidade | F102: ='Ass. Adm. II'!F102 -> 0.1997 | G102: 7.46
A103: K | B103: Maternidade | F103: ='Ass. Adm. II'!F103 -> 2.4753 | G103: 92.42
A104: L | B104: Consulta pré-natal | F104: ='Ass. Adm. II'!F104 -> 0.0098 | G104: 0.37
A105: TOTAL | F105: ='Ass. Adm. II'!F105 -> 29.4738 | G105: =SUM(G93:G104) -> 1100.48
A108: QUADRO RESUMO DO MÓDULO 4 - Custo de Reposição do Profissional Ausente
A110: 4 | B110: Custo de Reposição do Profissional Ausente | G110: Valor (R$)
A111: 4.1 | B111: Ausências legais | G111: =G105 -> 1100.48
A112: TOTAL | G112: =G111 -> 1100.48
A114: MÓDULO 5 - INSUMOS DIVERSOS
A116: 5 | B116: Insumos Diversos | G116: Valor (R$)
A117: A | B117: Uniformes
B118: Total | G118: =SUM(G117) -> 0
A120: MÓDULO 6 - CUSTOS INDIRETOS, TRIBUTOS E LUCRO
A122: 6 | B122: Custos Indiretos, Tributos e Lucro | F122: % | G122: Valor (R$)
A123: A | B123: Custos Indiretos | F123: ='Ass. Adm. II'!F123 -> 0.025 | G123: =G139*F123 -> 363.55
A124: B | B124: Lucro | F124: ='Ass. Adm. II'!F124 -> 0.05 | G124: =(G139+G123)*F124 -> 745.27
A125: C | B125: Tributos
A126: c.1 | B126: COFINS | F126: ='Ass. Adm. II'!F126 -> 0.03 | G126: =E146 -> 513.98
A127: c.2 | B127: PIS | F127: ='Ass. Adm. II'!F127 -> 0.0065 | G127: =E147 -> 111.36
A128: c.3 | B128: ISSQN | F128: ='Ass. Adm. II'!F128 -> 0.05 | G128: =E148 -> 856.63
B129: Total | F129: ='Ass. Adm. II'!F129 -> 0.1615 | G129: =SUM(G123:G128) -> 2590.79
A131: 2. QUADRO - RESUMO DO CUSTO POR EMPREGADO
B133: Mão de obra vinculada à execução contratual (valor por empregado) | G133: Valor (R$)
A134: A | B134: Módulo 1 - Composição da Remuneração | G134: =G39 -> 7399.45
A135: B | B135: Módulo 2 - Encargos e Benefícios Anuais, Mensais e Diários | G135: =G77 -> 5007.66
A136: C | B136: Módulo 3 - Provisão para recisão | G136: =G87 -> 1034.29
A137: D | B137: Módulo 4 - Custo de Reposição do Profissional Ausente | G137: =G112 -> 1100.48
A138: E | B138: Módulo 5 - Insumos diversos | G138: =G118 -> 0
A139: Subtotal ( A + B +C + D + E) | G139: =SUM(G134:G138) -> 14541.88
A140: F | B140: Módulo 6 - Custos indiretos, Tributos e lucro | G140: =G129 -> 2590.79
A141: Valor total por empregado | G141: =G139+G140 -> 17132.67
A143: P0 = (MÓD 1+MÓD 2+MÓD 3+MÓD 4+MÓD 5) + (CI) + (L) | E143: =G39+G77+G87+G112+G118+G123+G124 -> 15650.7
A144: P1 = P0/(1 - (pis+confins+iss)) | E144: =E143/(1-(F126+F127+F128))-0.01 -> 17132.67
A145: T = P1 - P0 | E145: =E144-E143 -> 1481.97
A146: COFINS = ((cofins)/(pis+cofins+iss) x T | E146: =((F126)/(F126+F127+F128))*E145 -> 513.98
A147: PIS = ((pis)/(pis+cofins+iss) x T | E147: =((F127)/(F126+F127+F128))*E145 -> 111.36
A148: ISS = (iss/(pis+cofins+iss)) x T | E148: =((F128/(F126+F127+F128))*E145) -> 856.63

Sheet Assist. Condução
A6: PLANILHA DE CUSTOS E FORMAÇÃO DE PREÇOS
B8: ='Ass. Adm. III'!B8 -> Nº Processo | E8: ='Ass. Adm. III'!E8 -> 59530.001233/2024-60
B9: ='Ass. Adm. III'!B9 -> Licitação nº
A10: DISCRIMINAÇÃO DOS SERVIÇOS (dados referentes à contratação)
A12: A | B12: Ano do Acordo, Convenção ou Dissídio Coletivo | F12: 2024 - PE000123/2024
A13: B | B13: Município/UF | F13: Petrolina/PE
A14: C | B14: Data de Registro no MTE | F14: 20/02/2024
A15: D | B15: Nº de meses de execução contratual | F15: 12 (doze) meses
A17: IDENTIFICAÇÃO DO SERVIÇO
A19: Tipo de Serviço | C19: Unidade de Medida | E19: Quantidade total a contratar (em função da unidade de medida)
A20: Assistente de Condução (A3) | C20: Posto de serviço | E20: 1
A22: 1. MÓDULOS
A24: MÃO DE OBRA
A25: Mão de obra vinculada à execução contratual
A27: Dados para composição dos custos referente à mão de obra
A28: 1 | B28: Tipo de serviço | G28: =A20 -> Assistente de Condução (A3)
A29: 2 | B29: Classificação Brasileira de Ocupações (CBO) | G29: 3421-25 | H29: 2021 | I29: 2022 | J29: 2023 | K29: 2024
A30: 3 | B30: Salário Normativo da Categoria Profissional | G30: =K35 -> 3378.33 | H30: 0.0393 | I30: 0.06 | J30: 0.0593 | K30: 0.0371
A31: 4 | B31: Categoria profissional (vinculada à execução contratual) | G31: Administrativo
A32: 5 | B32: Data-Base da categoria (dia/mês/ano) | G32: 01° de janeiro | H32: 4000 | I32: 4000 | J32: 4000 | K32: 2000-5000
H34: 2791.36
A35: MÓDULO 1: COMPOSIÇÃO DA REMUNERAÇÃO | H35: =H34*1.0393 -> 2901.060448 | I35: =H35*1.06 -> 3075.12 | J35: =I35*1.0593 -> 3257.47 | K35: =J35*1.0371+0.01 -> 3378.33
A37: 1 | B37: Composição da Remuneração | G37: Valor (R$)
A38: A | B38: Salário Base | G38: =G30 -> 3378.33
B39: Total | G39: =G38 -> 3378.33
A41: MÓDULO 2: ENCARGOS E BENEFÍCIOS ANUAIS, MENSAIS E DIÁRIOS
A43: Submódulo 2.1 - 13º (décimo terceiro) Salário, Férias e Adicional de Férias
A45: 2.1 | B45: 13º (décimo terceiro) Salário, Férias e Adicional de Férias | F45: % | G45: Valor (R$)
A46: A | B46: 13º (décimo terceiro) Salário | F46: ='Ass. Adm. II'!F46 -> 0.0833 | G46: =G39*F46 -> 281.41
A47: B | B47: Férias e Adicional de Férias | F47: ='Ass. Adm. II'!F47 -> 0.1111 | G47: =G39*F47 -> 375.33
A48: TOTAL | F48: ='Ass. Adm. II'!F48 -> 0.1944 | G48: =SUM(G46:G47) -> 656.74
A50: Submódulo 2.2 - Encargos previdenciários (GPS), Fundo de Garantia por tempo de Serviço (FGTS) e outras contribuições:
A52: 2.2 | B52: GPS, FGTS e outras contribuiçoes | F52: % | G52: Valor (R$)
A53: A | B53: INSS | F53: ='Ass. Adm. II'!F53 -> 0.2 | G53: =($G$39+$G$48)*F53 -> 807.01
A54: B | B54: Salário Educação | F54: ='Ass. Adm. II'!F54 -> 0.025 | G54: =($G$39+$G$48)*F54 -> 100.88
A55: C | B55: Seguro Acidente do Trabalho/SAT/INSS | F55: ='Ass. Adm. II'!F55 -> 0.03 | G55: 121.05
A56: D | B56: SESI/SESC | F56: ='Ass. Adm. II'!F56 -> 0.015 | G56: 60.53
A57: E | B57: SENAI/SENAC | F57: ='Ass. Adm. II'!F57 -> 0.01 | G57: 40.35
A58: F | B58: INCRA | F58: ='Ass. Adm. II'!F58 -> 0.002 | G58: 8.07
A59: G | B59: FGTS | F59: ='Ass. Adm. II'!F59 -> 0.08 | G59: 322.81
A60: H | B60: SEBRAE | F60: ='Ass. Adm. II'!F60 -> 0.006 | G60: 24.21
A61: TOTAL | F61: ='Ass. Adm. II'!F61 -> 0.368 | G61: =SUM(G53:G60) -> 1484.91
A63: Submódulo 2.3 - Benefícios Mensais e Diários
A65: 2.3 | B65: Benefícios Mensais e Diários | G65: Valor (R$)
A66: A | B66: Transporte | G66: =IF((5*2*22)-(6%*G38)>0,(5*2*22)-(6%*G38),0) -> 17.3 | I66: =6%*G38 -> 202.7 | J66: = 6% do salario base
A67: B | B67: Auxílio alimentação (Cláusula 11ª CCT 2023) | G67: ='Ass. Adm. I'!G67 -> 242 | I67: 5*2*22 = | J67: 220
A68: C | B68: Outros (Cobertura Social - Cláusula 15ª CCT 2023) | G68: ='Ass. Adm. I'!G68 -> 74.85 | I68: 220-202,70 | J68: =J67-I66 -> 17.3
B69: Total de Benefícios mensais e diários | G69: =SUM(G66:G68) -> 334.15
A71: QUADRO RESUMO DO MÓDULO 2 - Encargos e Benefícios anuais, mensais e diários
A73: 2 | B73: Encargos e Benefícios anuais, mensais e diários | G73: Valor (R$)
A74: 2.1 | B74: 13º (décimo terceiro) Salário, Férias e Adicional de Férias | G74: =G48 -> 656.74
A75: 2.2 | B75: GPS, FGTS e outras contribuiçoes | G75: =G61 -> 1484.91
A76: 2.3 | B76: Benefícios Mensais e Diários | G76: =G69 -> 334.15
A77: TOTAL | G77: =SUM(G74:G76) -> 2475.8
A79: MÓDULO 3 - PROVISÃO PARA RESCISÃO
I80: GPS
A81: 3 | B81: Provisão para Rescisão | G81: Valor (R$)
A82: A | B82: Aviso prévio indenizado | G82: =J82 -> 160.55 | H82: =G39+G77-I82 -> 4692.03 | I82: =(G39+G48)*0.288 -> 1162.1 | J82: =H82/12*0.4106 -> 160.55
A83: B | B83: Multa do FGTS e contribuição social sobre o Aviso Prévio Indenizado | G83: =I83 -> 66.27 | H83: =G59 -> 322.81 | I83: =(H83*0.4+H83*0.1)*0.4106 -> 66.27 | J83: =H83*0.5*0.4106 -> 66.27
A84: C | B84: Aviso Prévio Trabalhado | G84: 200.31 | H84: =G39+G77 -> 5854.13 | I84: =H84/12*0.4106 -> 200.31
A85: D | B85: Multa do FGTS e contribuição social sobre o Aviso Prévio Trabalhado | G85: 66.27 | H85: =G59 -> 322.81 | I85: =(H85*0.4+H85*0.1)*0.4106 -> 66.27 | J85: =H85*0.5*0.4106 -> 66.27
A86: E | B86: Demissão com Justa Causa | G86: =K86 -> -8.21 | H86: =G46 -> 281.41 | I86: =G47 -> 375.33 | J86: =H86+I86 -> 656.74 | K86: =-J86*0.0125 -> -8.21
A87: TOTAL | G87: =SUM(G82:G86) -> 485.19
A89: MÓDULO 4 - CUSTO DE REPOSIÇÃO DO PROFISSIONAL AUSENTE
A91: Submódulo 4.1 - Ausências Legais
A92: 4.1 | B92: Ausências legais | F92: Dias/Ano | G92: Valor (R$)
A93: A | B93: Férias | F93: ='Ass. Adm. II'!F93 -> 20.9589 | G93: =$I$93*F93/12+0 -> 369.07 | H93: =G39+G77+G87 -> 6339.32 | I93: =H93/30 -> 211.31 | J93: =I93*F105 -> 6228.11 | K93: =J93/12 -> 519.01
A94: B | B94: Ausência justificada | F94: ='Ass. Adm. II'!F94 -> 1 | G94: =$I$93*F94/12 -> 17.61
A95: C | B95: Acidente de trabalho | F95: ='Ass. Adm. II'!F95 -> 0.9659 | G95: 17.01
A96: D | B96: Afastamento por doença | F96: ='Ass. Adm. II'!F96 -> 3.4932 | G96: 61.51
A97: E | B97: Consulta médica filho | F97: ='Ass. Adm. II'!F97 -> 0.2688 | G97: 4.73
A98: F | B98: Óbitos na família | F98: ='Ass. Adm. II'!F98 -> 0.0427 | G98: 0.75
A99: G | B99: Casamento | F99: ='Ass. Adm. II'!F99 -> 0.0355 | G99: 0.63
A100: H | B100: Doação de Sangue | F100: ='Ass. Adm. II'!F100 -> 0.02 | G100: 0.35
A101: I | B101: Testemunho | F101: ='Ass. Adm. II'!F101 -> 0.004 | G101: 0.07
A102: J | B102: Paternidade | F102: ='Ass. Adm. II'!F102 -> 0.1997 | G102: 3.52
A103: K | B103: Maternidade | F103: ='Ass. Adm. II'!F103 -> 2.4753 | G103: 43.59
A104: L | B104: Consulta pré-natal | F104: ='Ass. Adm. II'!F104 -> 0.0098 | G104: 0.17
A105: TOTAL | F105: ='Ass. Adm. II'!F105 -> 29.4738 | G105: =SUM(G93:G104) -> 519.01
A108: QUADRO RESUMO DO MÓDULO 4 - Custo de Reposição do Profissional Ausente
A110: 4 | B110: Custo de Reposição do Profissional Ausente | G110: Valor (R$)
A111: 4.1 | B111: Ausências legais | G111: =G105 -> 519.01
A112: TOTAL | G112: =G111 -> 519.01
A114: MÓDULO 5 - INSUMOS DIVERSOS
A116: 5 | B116: Insumos Diversos | G116: Valor (R$)
A117: A | B117: Uniformes | G117: 0
B118: Total | G118: =SUM(G117) -> 0
A120: MÓDULO 6 - CUSTOS INDIRETOS, TRIBUTOS E LUCRO
A122: 6 | B122: Custos Indiretos, Tributos e Lucro | F122: % | G122: Valor (R$)
A123: A | B123: Custos Indiretos | F123: ='Ass. Adm. II'!F123 -> 0.025 | G123: =G139*F123 -> 171.46
A124: B | B124: Lucro | F124: ='Ass. Adm. II'!F124 -> 0.05 | G124: =(G139+G123)*F124 -> 351.49
A125: C | B125: Tributos
A126: c.1 | B126: COFINS | F126: ='Ass. Adm. II'!F126 -> 0.03 | G126: =E146 -> 242.41
A127: c.2 | B127: PIS | F127: ='Ass. Adm. II'!F127 -> 0.0065 | G127: =E147 -> 52.52
A128: c.3 | B128: ISSQN | F128: ='Ass. Adm. II'!F128 -> 0.05 | G128: =E148 -> 404.02
B129: Total | F129: ='Ass. Adm. II'!F129 -> 0.1615 | G129: =SUM(G123:G128) -> 1221.9
A131: 2. QUADRO - RESUMO DO CUSTO POR EMPREGADO
B133: Mão de obra vinculada à execução contratual (valor por empregado) | G133: Valor (R$)
A134: A | B134: Módulo 1 - Composição da Remuneração | G134: =G39 -> 3378.33
A135: B | B135: Módulo 2 - Encargos e Benefícios Anuais, Mensais e Diários | G135: =G77 -> 2475.8
A136: C | B136: Módulo 3 - Provisão para recisão | G136: =G87 -> 485.19
A137: D | B137: Módulo 4 - Custo de Reposição do Profissional Ausente | G137: =G112 -> 519.01
A138: E | B138: Módulo 5 - Insumos diversos | G138: =G118 -> 0
A139: Subtotal ( A + B +C + D + E) | G139: =SUM(G134:G138) -> 6858.33
A140: F | B140: Módulo 6 - Custos indiretos, Tributos e lucro | G140: =G129 -> 1221.9
A141: Valor total por empregado | G141: =G139+G140 -> 8080.23
A143: P0 = (MÓD 1+MÓD 2+MÓD 3+MÓD 4+MÓD 5) + (CI) + (L) | E143: =G39+G77+G87+G112+G118+G123+G124 -> 7381.28
A144: P1 = P0/(1 - (pis+confins+iss)) | E144: =E143/(1-(F126+F127+F128))+0.01 -> 8080.23
A145: T = P1 - P0 | E145: =E144-E143 -> 698.95
A146: COFINS = ((cofins)/(pis+cofins+iss) x T | E146: =((F126)/(F126+F127+F128))*E145-0 -> 242.41
A147: PIS = ((pis)/(pis+cofins+iss) x T | E147: =((F127)/(F126+F127+F128))*E145 -> 52.52
A148: ISS = (iss/(pis+cofins+iss)) x T | E148: =((F128/(F126+F127+F128))*E145)+0 -> 404.02

Sheet Ass. Cond. Hab. D
A6: PLANILHA DE CUSTOS E FORMAÇÃO DE PREÇOS
B8: ='Ass. Adm. III'!B8 -> Nº Processo | E8: ='Ass. Adm. III'!E8 -> 59530.001233/2024-60
B9: ='Ass. Adm. III'!B9 -> Licitação nº
A10: DISCRIMINAÇÃO DOS SERVIÇOS (dados referentes à contratação)
A12: A | B12: Ano do Acordo, Convenção ou Dissídio Coletivo | F12: 2024 - PE000123/2024
A13: B | B13: Município/UF | F13: Petrolina/PE
A14: C | B14: Data de Registro no MTE | F14: 20/02/2024
A15: D | B15: Nº de meses de execução contratual | F15: 12 (doze) meses
A17: IDENTIFICAÇÃO DO SERVIÇO
A19: Tipo de Serviço | C19: Unidade de Medida | E19: Quantidade total a contratar (em função da unidade de medida)
A20: Assistente de Condução - Hab. D (A3) | C20: Posto de serviço | E20: 1
A22: 1. MÓDULOS
A24: MÃO DE OBRA
A25: Mão de obra vinculada à execução contratual
A27: Dados para composição dos custos referente à mão de obra
A28: 1 | B28: Tipo de serviço | G28: =A20 -> Assistente de Condução - Hab. D (A3)
A29: 2 | B29: Classificação Brasileira de Ocupações (CBO) | G29: 3421-25 | H29: 2021 | I29: 2022 | J29: 2023 | K29: 2024
A30: 3 | B30: Salário Normativo da Categoria Profissional | G30: =K35 -> 3378.33 | H30: 0.0393 | I30: 0.06 | J30: 0.0593 | K30: 0.0371
A31: 4 | B31: Categoria profissional (vinculada à execução contratual) | G31: Administrativo
A32: 5 | B32: Data-Base da categoria (dia/mês/ano) | G32: 01° de janeiro | H32: 4000 | I32: 4000 | J32: 4000 | K32: 2000-5000
H34: 2791.36
A35: MÓDULO 1: COMPOSIÇÃO DA REMUNERAÇÃO | H35: =H34*1.0393 -> 2901.060448 | I35: =H35*1.06 -> 3075.12 | J35: =I35*1.0593 -> 3257.47 | K35: =J35*1.0371+0.01 -> 3378.33
A37: 1 | B37: Composição da Remuneração | G37: Valor (R$)
A38: A | B38: Salário Base | G38: =G30 -> 3378.33
B39: Total | G39: =G38 -> 3378.33
A41: MÓDULO 2: ENCARGOS E BENEFÍCIOS ANUAIS, MENSAIS E DIÁRIOS
A43: Submódulo 2.1 - 13º (décimo terceiro) Salário, Férias e Adicional de Férias
A45: 2.1 | B45: 13º (décimo terceiro) Salário, Férias e Adicional de Férias | F45: % | G45: Valor (R$)
A46: A | B46: 13º (décimo terceiro) Salário | F46: ='Ass. Adm. II'!F46 -> 0.0833 | G46: =G39*F46 -> 281.41
A47: B | B47: Férias e Adicional de Férias | F47: ='Ass. Adm. II'!F47 -> 0.1111 | G47: =G39*F47 -> 375.33
A48: TOTAL | F48: ='Ass. Adm. II'!F48 -> 0.1944 | G48: =SUM(G46:G47) -> 656.74
A50: Submódulo 2.2 - Encargos previdenciários (GPS), Fundo de Garantia por tempo de Serviço (FGTS) e outras contribuições:
A52: 2.2 | B52: GPS, FGTS e outras contribuiçoes | F52: % | G52: Valor (R$)
A53: A | B53: INSS | F53: ='Ass. Adm. II'!F53 -> 0.2 | G53: =($G$39+$G$48)*F53 -> 807.01
A54: B | B54: Salário Educação | F54: ='Ass. Adm. II'!F54 -> 0.025 | G54: =($G$39+$G$48)*F54 -> 100.88
A55: C | B55: Seguro Acidente do Trabalho/SAT/INSS | F55: ='Ass. Adm. II'!F55 -> 0.03 | G55: 121.05
A56: D | B56: SESI/SESC | F56: ='Ass. Adm. II'!F56 -> 0.015 | G56: 60.53
A57: E | B57: SENAI/SENAC | F57: ='Ass. Adm. II'!F57 -> 0.01 | G57: 40.35
A58: F | B58: INCRA | F58: ='Ass. Adm. II'!F58 -> 0.002 | G58: 8.07
A59: G | B59: FGTS | F59: ='Ass. Adm. II'!F59 -> 0.08 | G59: 322.81
A60: H | B60: SEBRAE | F60: ='Ass. Adm. II'!F60 -> 0.006 | G60: 24.21
A61: TOTAL | F61: ='Ass. Adm. II'!F61 -> 0.368 | G61: =SUM(G53:G60) -> 1484.91
A63: Submódulo 2.3 - Benefícios Mensais e Diários
A65: 2.3 | B65: Benefícios Mensais e Diários | G65: Valor (R$)
A66: A | B66: Transporte | G66: =IF((5*2*22)-(6%*G38)>0,(5*2*22)-(6%*G38),0) -> 17.3 | I66: =6%*G38 -> 202.7 | J66: = 6% do salario base
A67: B | B67: Auxílio alimentação (Cláusula 11ª CCT 2024) | G67: ='Ass. Adm. I'!G67 -> 242 | I67: 5*2*22 = | J67: 220
A68: C | B68: Outros (Cobertura Social - Cláusula 15ª CCT 2024) | G68: ='Ass. Adm. I'!G68 -> 74.85 | I68: 220-202,70 | J68: =J67-I66 -> 17.3
B69: Total de Benefícios mensais e diários | G69: =SUM(G66:G68) -> 334.15
A71: QUADRO RESUMO DO MÓDULO 2 - Encargos e Benefícios anuais, mensais e diários
A73: 2 | B73: Encargos e Benefícios anuais, mensais e diários | G73: Valor (R$)
A74: 2.1 | B74: 13º (décimo terceiro) Salário, Férias e Adicional de Férias | G74: =G48 -> 656.74
A75: 2.2 | B75: GPS, FGTS e outras contribuiçoes | G75: =G61 -> 1484.91
A76: 2.3 | B76: Benefícios Mensais e Diários | G76: =G69 -> 334.15
A77: TOTAL | G77: =SUM(G74:G76) -> 2475.8
A79: MÓDULO 3 - PROVISÃO PARA RESCISÃO
I80: GPS
A81: 3 | B81: Provisão para Rescisão | G81: Valor (R$)
A82: A | B82: Aviso prévio indenizado | G82: =J82 -> 160.55 | H82: =G39+G77-I82 -> 4692.03 | I82: =(G39+G48)*0.288 -> 1162.1 | J82: =H82/12*0.4106 -> 160.55
A83: B | B83: Multa do FGTS e contribuição social sobre o Aviso Prévio Indenizado | G83: =I83 -> 66.27 | H83: =G59 -> 322.81 | I83: =(H83*0.4+H83*0.1)*0.4106 -> 66.27 | J83: =H83*0.5*0.4106 -> 66.27
A84: C | B84: Aviso Prévio Trabalhado | G84: 200.31 | H84: =G39+G77 -> 5854.13 | I84: =H84/12*0.4106 -> 200.31
A85: D | B85: Multa do FGTS e contribuição social sobre o Aviso Prévio Trabalhado | G85: 66.27 | H85: =G59 -> 322.81 | I85: =(H85*0.4+H85*0.1)*0.4106 -> 66.27 | J85: =H85*0.5*0.4106 -> 66.27
A86: E | B86: Demissão com Justa Causa | G86: =K86 -> -8.21 | H86: =G46 -> 281.41 | I86: =G47 -> 375.33 | J86: =H86+I86 -> 656.74 | K86: =-J86*0.0125 -> -8.21
A87: TOTAL | G87: =SUM(G82:G86) -> 485.19
A89: MÓDULO 4 - CUSTO DE REPOSIÇÃO DO PROFISSIONAL AUSENTE
A91: Submódulo 4.1 - Ausências Legais
A92: 4.1 | B92: Ausências legais | F92: Dias/Ano | G92: Valor (R$)
A93: A | B93: Férias | F93: ='Ass. Adm. II'!F93 -> 20.9589 | G93: =$I$93*F93/12+0 -> 369.07 | H93: =G39+G77+G87 -> 6339.32 | I93: =H93/30 -> 211.31 | J93: =I93*F105 -> 6228.11 | K93: =J93/12 -> 519.01
A94: B | B94: Ausência justificada | F94: ='Ass. Adm. II'!F94 -> 1 | G94: =$I$93*F94/12 -> 17.61
A95: C | B95: Acidente de trabalho | F95: ='Ass. Adm. II'!F95 -> 0.9659 | G95: 17.01
A96: D | B96: Afastamento por doença | F96: ='Ass. Adm. II'!F96 -> 3.4932 | G96: =$I$93*F96/12+0 -> 61.51
A97: E | B97: Consulta médica filho | F97: ='Ass. Adm. II'!F97 -> 0.2688 | G97: 4.73
A98: F | B98: Óbitos na família | F98: ='Ass. Adm. II'!F98 -> 0.0427 | G98: 0.75
A99: G | B99: Casamento | F99: ='Ass. Adm. II'!F99 -> 0.0355 | G99: 0.63
A100: H | B100: Doação de Sangue | F100: ='Ass. Adm. II'!F100 -> 0.02 | G100: 0.35
A101: I | B101: Testemunho | F101: ='Ass. Adm. II'!F101 -> 0.004 | G101: 0.07
A102: J | B102: Paternidade | F102: ='Ass. Adm. II'!F102 -> 0.1997 | G102: 3.52
A103: K | B103: Maternidade | F103: ='Ass. Adm. II'!F103 -> 2.4753 | G103: 43.59
A104: L | B104: Consulta pré-natal | F104: ='Ass. Adm. II'!F104 -> 0.0098 | G104: 0.17
A105: TOTAL | F105: ='Ass. Adm. II'!F105 -> 29.4738 | G105: =SUM(G93:G104) -> 519.01
A108: QUADRO RESUMO DO MÓDULO 4 - Custo de Reposição do Profissional Ausente
A110: 4 | B110: Custo de Reposição do Profissional Ausente | G110: Valor (R$)
A111: 4.1 | B111: Ausências legais | G111: =G105 -> 519.01
A112: TOTAL | G112: =G111 -> 519.01
A114: MÓDULO 5 - INSUMOS DIVERSOS
A116: 5 | B116: Insumos Diversos | G116: Valor (R$)
A117: A | B117: Uniformes | G117: 0
B118: Total | G118: =SUM(G117) -> 0
A120: MÓDULO 6 - CUSTOS INDIRETOS, TRIBUTOS E LUCRO
A122: 6 | B122: Custos Indiretos, Tributos e Lucro | F122: % | G122: Valor (R$)
A123: A | B123: Custos Indiretos | F123: ='Ass. Adm. II'!F123 -> 0.025 | G123: =G139*F123 -> 171.46
A124: B | B124: Lucro | F124: ='Ass. Adm. II'!F124 -> 0.05 | G124: =(G139+G123)*F124 -> 351.49
A125: C | B125: Tributos
A126: c.1 | B126: COFINS | F126: ='Ass. Adm. II'!F126 -> 0.03 | G126: =E146 -> 242.41
A127: c.2 | B127: PIS | F127: ='Ass. Adm. II'!F127 -> 0.0065 | G127: =E147 -> 52.52
A128: c.3 | B128: ISSQN | F128: ='Ass. Adm. II'!F128 -> 0.05 | G128: =E148 -> 404.02
B129: Total | F129: ='Ass. Adm. II'!F129 -> 0.1615 | G129: =SUM(G123:G128) -> 1221.9
A131: 2. QUADRO - RESUMO DO CUSTO POR EMPREGADO
B133: Mão de obra vinculada à execução contratual (valor por empregado) | G133: Valor (R$)
A134: A | B134: Módulo 1 - Composição da Remuneração | G134: =G39 -> 3378.33
A135: B | B135: Módulo 2 - Encargos e Benefícios Anuais, Mensais e Diários | G135: =G77 -> 2475.8
A136: C | B136: Módulo 3 - Provisão para recisão | G136: =G87 -> 485.19
A137: D | B137: Módulo 4 - Custo de Reposição do Profissional Ausente | G137: =G112 -> 519.01
A138: E | B138: Módulo 5 - Insumos diversos | G138: =G118 -> 0
A139: Subtotal ( A + B +C + D + E) | G139: =SUM(G134:G138) -> 6858.33
A140: F | B140: Módulo 6 - Custos indiretos, Tributos e lucro | G140: =G129 -> 1221.9
A141: Valor total por empregado | G141: =G139+G140 -> 8080.23
A143: P0 = (MÓD 1+MÓD 2+MÓD 3+MÓD 4+MÓD 5) + (CI) + (L) | E143: =G39+G77+G87+G112+G118+G123+G124 -> 7381.28
A144: P1 = P0/(1 - (pis+confins+iss)) | E144: =E143/(1-(F126+F127+F128))+0.01 -> 8080.23
A145: T = P1 - P0 | E145: =E144-E143 -> 698.95
A146: COFINS = ((cofins)/(pis+cofins+iss) x T | E146: =((F126)/(F126+F127+F128))*E145 -> 242.41
A147: PIS = ((pis)/(pis+cofins+iss) x T | E147: =((F127)/(F126+F127+F128))*E145 -> 52.52
A148: ISS = (iss/(pis+cofins+iss)) x T | E148: =((F128/(F126+F127+F128))*E145) -> 404.02

Sheet Assist. Condução - Hora Extra
A6: PLANILHA DE CUSTOS E FORMAÇÃO DE PREÇOS
B8: ='Ass. Adm. III'!B8 -> Nº Processo | E8: ='Ass. Adm. III'!E8 -> 59530.001233/2024-60
B9: ='Ass. Adm. III'!B9 -> Licitação nº
A10: DISCRIMINAÇÃO DOS SERVIÇOS (dados referentes à contratação)
A12: A | B12: Ano do Acordo, Convenção ou Dissídio Coletivo | F12: 2024 - PE000123/2024
A13: B | B13: Município/UF | F13: Petrolina/PE
A14: C | B14: Data de Registro no MTE | F14: 20/02/2024
A15: D | B15: Nº de meses de execução contratual | F15: 12 (doze) meses
A17: IDENTIFICAÇÃO DO SERVIÇO
A19: Tipo de Serviço | C19: Unidade de Medida | E19: Quantidade total a contratar (em função da unidade de medida)
A20: Assistente de Condução (A3) - Horas Extras | C20: Hora | E20: 1
A22: 1. MÓDULOS
A24: MÃO DE OBRA
A25: Mão de obra vinculada à execução contratual
A27: Dados para composição dos custos referente à mão de obra
A28: 1 | B28: Tipo de serviço | G28: =A20 -> Assistente de Condução (A3) - Horas Extras
A29: 2 | B29: Classificação Brasileira de Ocupações (CBO) | G29: 3421-25 | H29: 2021 | I29: 2022 | J29: 2023 | K29: 2024
A30: 3 | B30: Hora extra a 50% | G30: =(K35/220)*1.5 -> 23.03 | H30: 0.0393 | I30: 0.06 | J30: 0.0593 | K30: 0.0371
A31: 4 | B31: Categoria profissional (vinculada à execução contratual) | G31: Administrativo
A32: 5 | B32: Data-Base da categoria (dia/mês/ano) | G32: 01° de janeiro | H32: 4000 | I32: 4000 | J32: 4000 | K32: 2000-5000
H34: 2791.36
A35: MÓDULO 1: COMPOSIÇÃO DA REMUNERAÇÃO | H35: =H34*1.0393 -> 2901.060448 | I35: =H35*1.06 -> 3075.12 | J35: =I35*1.0593 -> 3257.47 | K35: =J35*1.0371+0.01 -> 3378.33
A37: 1 | B37: Composição da Remuneração | G37: Valor (R$)
A38: A | B38: Hora extra a 50% - Assistente de Condução | G38: =G30 -> 23.03
B39: Total | G39: =G38 -> 23.03
A41: MÓDULO 2: ENCARGOS E BENEFÍCIOS ANUAIS, MENSAIS E DIÁRIOS
A43: Submódulo 2.1 - 13º (décimo terceiro) Salário, Férias e Adicional de Férias
A45: 2.1 | B45: 13º (décimo terceiro) Salário, Férias e Adicional de Férias | F45: % | G45: Valor (R$)
A46: A | B46: 13º (décimo terceiro) Salário | F46: ='Ass. Adm. II'!F46 -> 0.0833 | G46: =G39*F46 -> 1.92
A47: B | B47: Férias e Adicional de Férias | F47: ='Ass. Adm. II'!F47 -> 0.1111 | G47: =G39*F47 -> 2.56
A48: TOTAL | F48: ='Ass. Adm. II'!F48 -> 0.1944 | G48: =SUM(G46:G47) -> 4.48
A50: Submódulo 2.2 - Encargos previdenciários (GPS), Fundo de Garantia por tempo de Serviço (FGTS) e outras contribuições:
A52: 2.2 | B52: GPS, FGTS e outras contribuiçoes | F52: % | G52: Valor (R$)
A53: A | B53: INSS | F53: ='Ass. Adm. II'!F53 -> 0.2 | G53: =($G$39+$G$48)*F53 -> 5.5
A54: B | B54: Salário Educação | F54: ='Ass. Adm. II'!F54 -> 0.025 | G54: 0.69
A55: C | B55: Seguro Acidente do Trabalho/SAT/INSS | F55: ='Ass. Adm. II'!F55 -> 0.03 | G55: 0.83
A56: D | B56: SESI/SESC | F56: ='Ass. Adm. II'!F56 -> 0.015 | G56: 0.41
A57: E | B57: SENAI/SENAC | F57: ='Ass. Adm. II'!F57 -> 0.01 | G57: 0.28
A58: F | B58: INCRA | F58: ='Ass. Adm. II'!F58 -> 0.002 | G58: 0.06
A59: G | B59: FGTS | F59: ='Ass. Adm. II'!F59 -> 0.08 | G59: 2.2
A60: H | B60: SEBRAE | F60: ='Ass. Adm. II'!F60 -> 0.006 | G60: 0.17
A61: TOTAL | F61: ='Ass. Adm. II'!F61 -> 0.368 | G61: =SUM(G53:G60) -> 10.14
A63: Submódulo 2.3 - Benefícios Mensais e Diários
A65: 2.3 | B65: Benefícios Mensais e Diários | G65: Valor (R$)
A66: A | B66: Transporte | G66: 0
A67: B | B67: Auxílio alimentação (Cláusula 11ª CCT 2024) | G67: 0
A68: C | B68: Outros (Cobertura Social - Cláusula 15ª CCT 2024) | G68: 0
B69: Total de Benefícios mensais e diários | G69: =SUM(G66:G68) -> 0
A71: QUADRO RESUMO DO MÓDULO 2 - Encargos e Benefícios anuais, mensais e diários
A73: 2 | B73: Encargos e Benefícios anuais, mensais e diários | G73: Valor (R$)
A74: 2.1 | B74: 13º (décimo terceiro) Salário, Férias e Adicional de Férias | G74: =G48 -> 4.48
A75: 2.2 | B75: GPS, FGTS e outras contribuiçoes | G75: =G61 -> 10.14
A76: 2.3 | B76: Benefícios Mensais e Diários | G76: =G69 -> 0
A77: TOTAL | G77: =SUM(G74:G76) -> 14.62
A79: MÓDULO 3 - PROVISÃO PARA RESCISÃO
I80: GPS
A81: 3 | B81: Provisão para Rescisão | G81: Valor (R$)
A82: A | B82: Aviso prévio indenizado | G82: =J82 -> 1.02 | H82: =G39+G77-I82 -> 29.73 | I82: =(G39+G48)*0.288 -> 7.92 | J82: =H82/12*0.4106 -> 1.02
A83: B | B83: Multa do FGTS e contribuição social sobre o Aviso Prévio Indenizado | G83: =I83 -> 0.45 | H83: =G59 -> 2.2 | I83: =(H83*0.4+H83*0.1)*0.4106 -> 0.45 | J83: =H83*0.5*0.4106 -> 0.45
A84: C | B84: Aviso Prévio Trabalhado | G84: 1.29 | H84: =G39+G77 -> 37.65 | I84: =H84/12*0.4106 -> 1.29
A85: D | B85: Multa do FGTS e contribuição social sobre o Aviso Prévio Trabalhado | G85: 0.45 | H85: =G59 -> 2.2 | I85: =(H85*0.4+H85*0.1)*0.4106 -> 0.45 | J85: =H85*0.5*0.4106 -> 0.45
A86: E | B86: Demissão com Justa Causa | G86: =K86 -> -0.06 | H86: =G46 -> 1.92 | I86: =G47 -> 2.56 | J86: =H86+I86 -> 4.48 | K86: =-J86*0.0125 -> -0.06
A87: TOTAL | G87: =SUM(G82:G86) -> 3.15
A89: MÓDULO 4 - CUSTO DE REPOSIÇÃO DO PROFISSIONAL AUSENTE
A91: Submódulo 4.1 - Ausências Legais
A92: 4.1 | B92: Ausências legais | F92: Dias/Ano | G92: Valor (R$)
A93: A | B93: Férias | F93: ='Ass. Adm. II'!F93 -> 20.9589 | G93: =$I$93*F93/12+0.01 -> 2.39 | H93: =G39+G77+G87 -> 40.8 | I93: =H93/30 -> 1.36 | J93: =I93*F105 -> 40.08 | K93: =J93/12 -> 3.34
A94: B | B94: Ausência justificada | F94: ='Ass. Adm. II'!F94 -> 1 | G94: =$I$93*F94/12 -> 0.11
A95: C | B95: Acidente de trabalho | F95: ='Ass. Adm. II'!F95 -> 0.9659 | G95: 0.11
A96: D | B96: Afastamento por doença | F96: ='Ass. Adm. II'!F96 -> 3.4932 | G96: 0.4
A97: E | B97: Consulta médica filho | F97: ='Ass. Adm. II'!F97 -> 0.2688 | G97: 0.03
A98: F | B98: Óbitos na família | F98: ='Ass. Adm. II'!F98 -> 0.0427 | G98: 0
A99: G | B99: Casamento | F99: ='Ass. Adm. II'!F99 -> 0.0355 | G99: 0
A100: H | B100: Doação de Sangue | F100: ='Ass. Adm. II'!F100 -> 0.02 | G100: 0
A101: I | B101: Testemunho | F101: ='Ass. Adm. II'!F101 -> 0.004 | G101: 0
A102: J | B102: Paternidade | F102: ='Ass. Adm. II'!F102 -> 0.1997 | G102: 0.02
A103: K | B103: Maternidade | F103: ='Ass. Adm. II'!F103 -> 2.4753 | G103: 0.28
A104: L | B104: Consulta pré-natal | F104: ='Ass. Adm. II'!F104 -> 0.0098 | G104: 0
A105: TOTAL | F105: ='Ass. Adm. II'!F105 -> 29.4738 | G105: =SUM(G93:G104) -> 3.34
A108: QUADRO RESUMO DO MÓDULO 4 - Custo de Reposição do Profissional Ausente
A110: 4 | B110: Custo de Reposição do Profissional Ausente | G110: Valor (R$)
A111: 4.1 | B111: Ausências legais | G111: =G105 -> 3.34
A112: TOTAL | G112: =G111 -> 3.34
A114: MÓDULO 5 - INSUMOS DIVERSOS
A116: 5 | B116: Insumos Diversos | G116: Valor (R$)
A117: A | B117: Uniformes | G117: 0
B118: Total | G118: =SUM(G117) -> 0
A120: MÓDULO 6 - CUSTOS INDIRETOS, TRIBUTOS E LUCRO
A122: 6 | B122: Custos Indiretos, Tributos e Lucro | F122: % | G122: Valor (R$)
A123: A | B123: Custos Indiretos | F123: ='Ass. Adm. II'!F123 -> 0.025 | G123: =G139*F123 -> 1.1
A124: B | B124: Lucro | F124: ='Ass. Adm. II'!F124 -> 0.05 | G124: =(G139+G123)*F124 -> 2.26
A125: C | B125: Tributos
A126: c.1 | B126: COFINS | F126: ='Ass. Adm. II'!F126 -> 0.03 | G126: =E146 -> 1.56
A127: c.2 | B127: PIS | F127: ='Ass. Adm. II'!F127 -> 0.0065 | G127: 0.34
A128: c.3 | B128: ISSQN | F128: ='Ass. Adm. II'!F128 -> 0.05 | G128: 2.6
B129: Total | F129: ='Ass. Adm. II'!F129 -> 0.1615 | G129: =SUM(G123:G128) -> 7.86
A131: 2. QUADRO - RESUMO DO CUSTO POR EMPREGADO
B133: Mão de obra vinculada à execução contratual (valor por empregado) | G133: Valor (R$)
A134: A | B134: Módulo 1 - Composição da Remuneração | G134: =G39 -> 23.03
A135: B | B135: Módulo 2 - Encargos e Benefícios Anuais, Mensais e Diários | G135: =G77 -> 14.62
A136: C | B136: Módulo 3 - Provisão para recisão | G136: =G87 -> 3.15
A137: D | B137: Módulo 4 - Custo de Reposição do Profissional Ausente | G137: =G112 -> 3.34
A138: E | B138: Módulo 5 - Insumos diversos | G138: =G118 -> 0
A139: Subtotal ( A + B +C + D + E) | G139: =SUM(G134:G138) -> 44.14
A140: F | B140: Módulo 6 - Custos indiretos, Tributos e lucro | G140: =G129 -> 7.86
A141: Valor total por Hora Extra a 50% | G141: =G139+G140 -> 52
A143: P0 = (MÓD 1+MÓD 2+MÓD 3+MÓD 4+MÓD 5) + (CI) + (L) | E143: =G39+G77+G87+G112+G118+G123+G124 -> 47.5
A144: P1 = P0/(1 - (pis+confins+iss)) | E144: =E143/(1-(F126+F127+F128)) -> 52
A145: T = P1 - P0 | E145: =E144-E143 -> 4.5
A146: COFINS = ((cofins)/(pis+cofins+iss) x T | E146: =((F126)/(F126+F127+F128))*E145 -> 1.56
A147: PIS = ((pis)/(pis+cofins+iss) x T | E147: =((F127)/(F126+F127+F128))*E145 -> 0.34
A148: ISS = (iss/(pis+cofins+iss)) x T | E148: =((F128/(F126+F127+F128))*E145) -> 2.6

Sheet Assist. Condução - H. Extra D
A6: PLANILHA DE CUSTOS E FORMAÇÃO DE PREÇOS
B8: ='Ass. Adm. III'!B8 -> Nº Processo | E8: ='Ass. Adm. III'!E8 -> 59530.001233/2024-60
B9: ='Ass. Adm. III'!B9 -> Licitação nº
A10: DISCRIMINAÇÃO DOS SERVIÇOS (dados referentes à contratação)
A12: A | B12: Ano do Acordo, Convenção ou Dissídio Coletivo | F12: 2024 - PE000123/2024
A13: B | B13: Município/UF | F13: Petrolina/PE
A14: C | B14: Data de Registro no MTE | F14: 20/02/2024
A15: D | B15: Nº de meses de execução contratual | F15: 12 (doze) meses
A17: IDENTIFICAÇÃO DO SERVIÇO
A19: Tipo de Serviço | C19: Unidade de Medida | E19: Quantidade total a contratar (em função da unidade de medida)
A20: Assistente de Condução - Hab. D - Horas Extras | C20: Hora | E20: 1
A22: 1. MÓDULOS
A24: MÃO DE OBRA
A25: Mão de obra vinculada à execução contratual
A27: Dados para composição dos custos referente à mão de obra
A28: 1 | B28: Tipo de serviço | G28: =A20 -> Assistente de Condução - Hab. D - Horas Extras
A29: 2 | B29: Classificação Brasileira de Ocupações (CBO) | G29: 3421-25 | H29: 2021 | I29: 2022 | J29: 2023 | K29: 2024
A30: 3 | B30: Hora extra a 50% | G30: =(K35/220)*1.5 -> 23.03 | H30: 0.0393 | I30: 0.06 | J30: 0.0593 | K30: 0.0371
A31: 4 | B31: Categoria profissional (vinculada à execução contratual) | G31: Administrativo
A32: 5 | B32: Data-Base da categoria (dia/mês/ano) | G32: 01° de janeiro | H32: 4000 | I32: 4000 | J32: 4000 | K32: 2000-5000
H34: 2791.36
A35: MÓDULO 1: COMPOSIÇÃO DA REMUNERAÇÃO | H35: =H34*1.0393 -> 2901.060448 | I35: =H35*1.06 -> 3075.12 | J35: =I35*1.0593 -> 3257.47 | K35: =J35*1.0371+0.01 -> 3378.33
A37: 1 | B37: Composição da Remuneração | G37: Valor (R$)
A38: A | B38: Hora extra a 50% - Assistente de Condução | G38: =G30 -> 23.03
B39: Total | G39: =G38 -> 23.03
A41: MÓDULO 2: ENCARGOS E BENEFÍCIOS ANUAIS, MENSAIS E DIÁRIOS
A43: Submódulo 2.1 - 13º (décimo terceiro) Salário, Férias e Adicional de Férias
A45: 2.1 | B45: 13º (décimo terceiro) Salário, Férias e Adicional de Férias | F45: % | G45: Valor (R$)
A46: A | B46: 13º (décimo terceiro) Salário | F46: ='Ass. Adm. II'!F46 -> 0.0833 | G46: =G39*F46 -> 1.92
A47: B | B47: Férias e Adicional de Férias | F47: ='Ass. Adm. II'!F47 -> 0.1111 | G47: =G39*F47 -> 2.56
A48: TOTAL | F48: ='Ass. Adm. II'!F48 -> 0.1944 | G48: =SUM(G46:G47) -> 4.48
A50: Submódulo 2.2 - Encargos previdenciários (GPS), Fundo de Garantia por tempo de Serviço (FGTS) e outras contribuições:
A52: 2.2 | B52: GPS, FGTS e outras contribuiçoes | F52: % | G52: Valor (R$)
A53: A | B53: INSS | F53: ='Ass. Adm. II'!F53 -> 0.2 | G53: =($G$39+$G$48)*F53 -> 5.5
A54: B | B54: Salário Educação | F54: ='Ass. Adm. II'!F54 -> 0.025 | G54: 0.69
A55: C | B55: Seguro Acidente do Trabalho/SAT/INSS | F55: ='Ass. Adm. II'!F55 -> 0.03 | G55: 0.83
A56: D | B56: SESI/SESC | F56: ='Ass. Adm. II'!F56 -> 0.015 | G56: 0.41
A57: E | B57: SENAI/SENAC | F57: ='Ass. Adm. II'!F57 -> 0.01 | G57: 0.28
A58: F | B58: INCRA | F58: ='Ass. Adm. II'!F58 -> 0.002 | G58: 0.06
A59: G | B59: FGTS | F59: ='Ass. Adm. II'!F59 -> 0.08 | G59: 2.2
A60: H | B60: SEBRAE | F60: ='Ass. Adm. II'!F60 -> 0.006 | G60: 0.17
A61: TOTAL | F61: ='Ass. Adm. II'!F61 -> 0.368 | G61: =SUM(G53:G60) -> 10.14
A63: Submódulo 2.3 - Benefícios Mensais e Diários
A65: 2.3 | B65: Benefícios Mensais e Diários | G65: Valor (R$)
A66: A | B66: Transporte | G66: 0
A67: B | B67: Auxílio alimentação (Cláusula 11ª CCT 2024) | G67: 0
A68: C | B68: Outros (Cobertura Social - Cláusula 15ª CCT 2024) | G68: 0
B69: Total de Benefícios mensais e diários | G69: =SUM(G66:G68) -> 0
A71: QUADRO RESUMO DO MÓDULO 2 - Encargos e Benefícios anuais, mensais e diários
A73: 2 | B73: Encargos e Benefícios anuais, mensais e diários | G73: Valor (R$)
A74: 2.1 | B74: 13º (décimo terceiro) Salário, Férias e Adicional de Férias | G74: =G48 -> 4.48
A75: 2.2 | B75: GPS, FGTS e outras contribuiçoes | G75: =G61 -> 10.14
A76: 2.3 | B76: Benefícios Mensais e Diários | G76: =G69 -> 0
A77: TOTAL | G77: =SUM(G74:G76) -> 14.62
A79: MÓDULO 3 - PROVISÃO PARA RESCISÃO
I80: GPS
A81: 3 | B81: Provisão para Rescisão | G81: Valor (R$)
A82: A | B82: Aviso prévio indenizado | G82: =J82 -> 1.02 | H82: =G39+G77-I82 -> 29.73 | I82: =(G39+G48)*0.288 -> 7.92 | J82: =H82/12*0.4106 -> 1.02
A83: B | B83: Multa do FGTS e contribuição social sobre o Aviso Prévio Indenizado | G83: =I83 -> 0.45 | H83: =G59 -> 2.2 | I83: =(H83*0.4+H83*0.1)*0.4106 -> 0.45 | J83: =H83*0.5*0.4106 -> 0.45
A84: C | B84: Aviso Prévio Trabalhado | G84: 1.29 | H84: =G39+G77 -> 37.65 | I84: =H84/12*0.4106 -> 1.29
A85: D | B85: Multa do FGTS e contribuição social sobre o Aviso Prévio Trabalhado | G85: 0.45 | H85: =G59 -> 2.2 | I85: =(H85*0.4+H85*0.1)*0.4106 -> 0.45 | J85: =H85*0.5*0.4106 -> 0.45
A86: E | B86: Demissão com Justa Causa | G86: =K86 -> -0.06 | H86: =G46 -> 1.92 | I86: =G47 -> 2.56 | J86: =H86+I86 -> 4.48 | K86: =-J86*0.0125 -> -0.06
A87: TOTAL | G87: =SUM(G82:G86) -> 3.15
A89: MÓDULO 4 - CUSTO DE REPOSIÇÃO DO PROFISSIONAL AUSENTE
A91: Submódulo 4.1 - Ausências Legais
A92: 4.1 | B92: Ausências legais | F92: Dias/Ano | G92: Valor (R$)
A93: A | B93: Férias | F93: ='Ass. Adm. II'!F93 -> 20.9589 | G93: =$I$93*F93/12+0.01 -> 2.39 | H93: =G39+G77+G87 -> 40.8 | I93: =H93/30 -> 1.36 | J93: =I93*F105 -> 40.08 | K93: =J93/12 -> 3.34
A94: B | B94: Ausência justificada | F94: ='Ass. Adm. II'!F94 -> 1 | G94: =$I$93*F94/12 -> 0.11
A95: C | B95: Acidente de trabalho | F95: ='Ass. Adm. II'!F95 -> 0.9659 | G95: 0.11
A96: D | B96: Afastamento por doença | F96: ='Ass. Adm. II'!F96 -> 3.4932 | G96: 0.4
A97: E | B97: Consulta médica filho | F97: ='Ass. Adm. II'!F97 -> 0.2688 | G97: 0.03
A98: F | B98: Óbitos na família | F98: ='Ass. Adm. II'!F98 -> 0.0427 | G98: 0
A99: G | B99: Casamento | F99: ='Ass. Adm. II'!F99 -> 0.0355 | G99: 0
A100: H | B100: Doação de Sangue | F100: ='Ass. Adm. II'!F100 -> 0.02 | G100: 0
A101: I | B101: Testemunho | F101: ='Ass. Adm. II'!F101 -> 0.004 | G101: 0
A102: J | B102: Paternidade | F102: ='Ass. Adm. II'!F102 -> 0.1997 | G102: 0.02
A103: K | B103: Maternidade | F103: ='Ass. Adm. II'!F103 -> 2.4753 | G103: 0.28
A104: L | B104: Consulta pré-natal | F104: ='Ass. Adm. II'!F104 -> 0.0098 | G104: 0
A105: TOTAL | F105: ='Ass. Adm. II'!F105 -> 29.4738 | G105: =SUM(G93:G104) -> 3.34
A108: QUADRO RESUMO DO MÓDULO 4 - Custo de Reposição do Profissional Ausente
A110: 4 | B110: Custo de Reposição do Profissional Ausente | G110: Valor (R$)
A111: 4.1 | B111: Ausências legais | G111: =G105 -> 3.34
A112: TOTAL | G112: =G111 -> 3.34
A114: MÓDULO 5 - INSUMOS DIVERSOS
A116: 5 | B116: Insumos Diversos | G116: Valor (R$)
A117: A | B117: Uniformes | G117: 0
B118: Total | G118: =SUM(G117) -> 0
A120: MÓDULO 6 - CUSTOS INDIRETOS, TRIBUTOS E LUCRO
A122: 6 | B122: Custos Indiretos, Tributos e Lucro | F122: % | G122: Valor (R$)
A123: A | B123: Custos Indiretos | F123: ='Ass. Adm. II'!F123 -> 0.025 | G123: =G139*F123 -> 1.1
A124: B | B124: Lucro | F124: ='Ass. Adm. II'!F124 -> 0.05 | G124: =(G139+G123)*F124 -> 2.26
A125: C | B125: Tributos
A126: c.1 | B126: COFINS | F126: ='Ass. Adm. II'!F126 -> 0.03 | G126: =E146 -> 1.56
A127: c.2 | B127: PIS | F127: ='Ass. Adm. II'!F127 -> 0.0065 | G127: 0.34
A128: c.3 | B128: ISSQN | F128: ='Ass. Adm. II'!F128 -> 0.05 | G128: 2.6
B129: Total | F129: ='Ass. Adm. II'!F129 -> 0.1615 | G129: =SUM(G123:G128) -> 7.86
A131: 2. QUADRO - RESUMO DO CUSTO POR EMPREGADO
B133: Mão de obra vinculada à execução contratual (valor por empregado) | G133: Valor (R$)
A134: A | B134: Módulo 1 - Composição da Remuneração | G134: =G39 -> 23.03
A135: B | B135: Módulo 2 - Encargos e Benefícios Anuais, Mensais e Diários | G135: =G77 -> 14.62
A136: C | B136: Módulo 3 - Provisão para recisão | G136: =G87 -> 3.15
A137: D | B137: Módulo 4 - Custo de Reposição do Profissional Ausente | G137: =G112 -> 3.34
A138: E | B138: Módulo 5 - Insumos diversos | G138: =G118 -> 0
A139: Subtotal ( A + B +C + D + E) | G139: =SUM(G134:G138) -> 44.14
A140: F | B140: Módulo 6 - Custos indiretos, Tributos e lucro | G140: =G129 -> 7.86
A141: Valor total por Hora Extra a 50% | G141: =G139+G140 -> 52
A143: P0 = (MÓD 1+MÓD 2+MÓD 3+MÓD 4+MÓD 5) + (CI) + (L) | E143: =G39+G77+G87+G112+G118+G123+G124 -> 47.5
A144: P1 = P0/(1 - (pis+confins+iss)) | E144: =E143/(1-(F126+F127+F128)) -> 52
A145: T = P1 - P0 | E145: =E144-E143 -> 4.5
A146: COFINS = ((cofins)/(pis+cofins+iss) x T | E146: =((F126)/(F126+F127+F128))*E145 -> 1.56
A147: PIS = ((pis)/(pis+cofins+iss) x T | E147: =((F127)/(F126+F127+F128))*E145 -> 0.34
A148: ISS = (iss/(pis+cofins+iss)) x T | E148: =((F128/(F126+F127+F128))*E145) -> 2.6

Sheet Despesas com Viagens - Diárias
A7: Despesas com Viagens
A8: ITEM | B8: DISCRIMINAÇÃO | C8: QUANT. | D8: VALOR
D9: UNITÁRIO | E9: TOTAL
A10: 1 | B10: Diária (pernoite) - 10ª CCT 2024 | C10: =10*12 -> 120 | D10: 95.96 | E10: =C10*D10 -> 11515.2
A11: 2 | B11: Diária (12hs) - 10ª CCT 2024 | C11: =5*12 -> 60 | D11: =D10*(2/3) -> 63.97 | E11: =C11*D11 -> 3838.2
A12: 3 | B12: Diária (8hs) - 10ª CCT 2024 | C12: =10*12 -> 120 | D12: =D10*(1/3) -> 31.99 | E12: =C12*D12 -> 3838.8
A13: 2 | B13: BDI + IMPOSTOS (21,75%) | E13: =(E10+E11+E12)*'Assist. Condução'!F129+0.06 -> 3099.6
A14: 3 | B14: TOTAL + BDI + IMPOSTOS (21,75%) | E14: =SUM(E10:E13) -> 22291.8
A15: 4 | B15: TOTAL + BDI + IMPOSTOS (21,75%) P/ MÊS | E15: =E14/12 -> 1857.65
A17: Obs.: O cálculo do quantitativo de diárias (pernoite) foi baseado na estimativa de 10 diárias por mês, durante o período de 12 meses, totalizando 120 diárias.
A18: Obs.: O cálculo do quantitativo de diárias (12hs) foi baseado na estimativa de 05 diárias por mês, durante o período de 12 meses, totalizando 60 diárias (12hs).
A19: Obs.: O cálculo do quantitativo de diárias (8 hs) foi baseado na estimativa de 10 diárias por mês, durante o período de 12 meses, totalizando 120 diárias (8hs).
